{"text_format":"1","workbook":"xlsx","n_sheets":12,"sheets":["INTRO","CALC","PRINTOUT","INFO","HEATLOSS","PARAMETER_R","TEMPERATUR","PARAMETER_HL","Product_description","Language","Release Info","VB"],"not_rendered":{"charts":0,"images":2,"macros":1,"external_links":0,"defined_names":13,"comments":0,"pivot_tables":1},"unopened":[{"sheet":"VB","index":11,"reason":"part_missing"}],"bounds":{"document_bytes":16777216,"sheet_cells":100000,"rows_first":2000,"rows_last":500,"rows_between":2000,"halvings":0,"cell_chars":16384,"cell_head_chars":4096},"cells_cut":0,"cells_raw":0,"read":"whole","date_system":"1900"}

{"sheet":"INTRO","index":0,"n_rows":23,"n_cols":9,"rows_kept":23,"cut":false,"hidden":false,"merged":[]}
[null,null,null,null,null,null,null,null,"QUICK CALC v10.01"]
[]
["Copyright © 2020 by Thermaflex International Holding b.v."]
[]
["Pipe sizing tools of A to B connection for Heating, Geothermal distribution lines and Sanitary applications (closed and open systems)."]
["This Calculation tool includes the dated material properties and specifications of the Flexalen pre-insulated pipe systems:"]
["Flexalen PB"]
["Flexalen 600 / Flexalen 600SL"]
["Flexalen PU / Flexalen PU SL"]
[]
[]
["Requirements"]
["Microsoft Excel 2016 or higher. "]
[]
["Support"]
["If you face issues with this calculation tool, please contact your Thermaflex area contact person."]
[]
["Disclaimer"]
["This software caclulation tool belongs to Thermaflex. Unautorized sharing or distribution of calculation tool is forbidden! "]
["THERMAFLEX cannot accept any liability for the results or problems with the data or computer."]
["The compatibility and correct lincence of this Software is the sole responsibility of the user."]
["Please note that despite careful development and stringent tests we strongly advise to double check all the results."]
["All is subject to technical modifications; no responsibility is accepted for the accuracy of this information."]

{"sheet":"CALC","index":1,"n_rows":33,"n_cols":29,"rows_kept":33,"cut":false,"hidden":false,"merged":[[30,3,30,4],[2,1,2,11],[3,1,3,11],[4,1,4,11],[29,3,29,4],[18,8,18,9]]}
["© 2020 THERMAFLEX / Unautorized sharing or distribution of calculation tool is forbidden! ",null,null,null,null,null,null,null,null,null,null,null,null,null,null,null,null,null,null,null,null,null,null,null,null,null,null,"LANGUAGE","PRODUCT"]
[null,null,null,null,null,null,null,null,null,null,null,null,null,null,null,null,null,null,null,null,null,null,null,null,null,null,null,null,{"$f":"IF(PARAMETER_HL!J5=\"\",\"\",PARAMETER_HL!J5)","v":"1010-090032-001"}]
[null,{"$f":"HLOOKUP($K$32,Language!$B:$Y,2,0)","v":"VÝPOČET POTRUBÍ PRO TRUBNÍ VEDENÍ - SPOJENÍ DVOU BODŮJEDNOTRUBNÍM NEBO DVOUTRUBNÍM VEDENÍM"},null,null,null,null,null,null,null,null,null,null,null,null,null,null,null,null,null,null,null,null,null,null,null,null,null,"ENGLISH",{"$f":"IF(PARAMETER_HL!J6=\"\",\"\",PARAMETER_HL!J6)","v":"1210-091032-001"}]
[null,{"$f":"HLOOKUP($K$32,Language!$B:$Y,3,0)","v":"FLEXALEN - PŘEDIZOLOVANÉ POTRUBNÍ SYSTÉMY"},null,null,null,null,null,null,null,null,null,null,null,null,null,null,null,null,null,null,null,null,null,null,null,null,null,"GERMAN",{"$f":"IF(PARAMETER_HL!J7=\"\",\"\",PARAMETER_HL!J7)","v":"1000-090032-001"}]
[null,{"$f":"HLOOKUP($K$32,Language!$B:$Y,4,0)","v":"VYVINUTO PRO ROZVODY VODY A SYSTÉMY DÁLKOVÉHO TOPENÍ "},null,null,null,null,null,null,null,null,null,null,null,null,null,null,null,null,null,null,null,null,null,null,null,null,null,"BULAGRIAN",{"$f":"IF(PARAMETER_HL!J8=\"\",\"\",PARAMETER_HL!J8)","v":""}]
[null,null,null,null,null,null,null,null,null,null,null,null,null,null,null,null,null,null,null,null,null,null,null,null,null,null,null,"DUTCH ",{"$f":"IF(PARAMETER_HL!J9=\"\",\"\",PARAMETER_HL!J9)","v":""}]
[null,null,null,null,null,null,null,null,null,null,null,null,null,null,null,null,null,null,null,null,null,null,null,null,null,null,null,"FRENCH",{"$f":"IF(PARAMETER_HL!J10=\"\",\"\",PARAMETER_HL!J10)","v":""}]
[null,{"$f":"HLOOKUP($K$32,Language!$A:$Y,51,0)","v":"PROSÍM VYPLŇTE UŽITÍ:"},{"$f":"HLOOKUP($K$32,Language!$A:$Y,52,0)","v":"TEPLÁ VODA  →"},null,null,null,{"$f":"HLOOKUP($K$32,Language!$A:$Y,22,0)","v":"POUŽITELNÝ TEPELNÝ SPÁD"},null,{"$f":"IFERROR(IF(G29=\"E\",HLOOKUP($K$32,Language!$A:$Y,36,0),K16-K18),HLOOKUP($K$32,Language!$A:$Y,78,0))","v":"Choose product"},null,null,null,null,null,null,null,null,null,null,null,null,null,null,null,null,null,null,"ROMANIAN",{"$f":"IF(PARAMETER_HL!J11=\"\",\"\",PARAMETER_HL!J11)","v":""}]
[null,null,{"$f":"HLOOKUP($K$32,Language!$A:$Y,53,0)","v":"TOPENÍ/CHLAZENÍ →"},null,null,null,{"$f":"HLOOKUP($K$32,Language!$A:$Y,23,0)","v":"POUŽITELNÉ ZATÍŽENÍ"},null,{"$f":"IFERROR(IF(G29=\"E\",HLOOKUP($K$32,Language!$A:$Y,36,0),TEMPERATUR!C28),HLOOKUP($K$32,Language!$A:$Y,78,0))","v":"Choose product"},null,null,null,null,null,null,null,null,null,null,null,null,null,null,null,null,null,null,"TURKISH",{"$f":"IF(PARAMETER_HL!J12=\"\",\"\",PARAMETER_HL!J12)","v":""}]
[null,null,null,null,null,null,{"$f":"HLOOKUP($K$32,Language!$A:$Y,24,0)","v":"OBSAH SÍTĚ"},null,{"$f":"TEMPERATUR!G12","v":0},null,null,null,null,null,null,null,null,null,null,null,null,null,null,null,null,null,null,"RUSSIAN",{"$f":"IF(PARAMETER_HL!J13=\"\",\"\",PARAMETER_HL!J13)","v":""}]
[null,{"$f":"IF($G$29=\"D\",HLOOKUP($K$32,Language!$A:$Y,60,0),HLOOKUP($K$32,Language!$A:$Y,55,0))","v":"TEPLOTA NA PŘÍVOD. VĚTVI  "},"(Tf)",null,{"$f":"IF($G$29=\"D\",HLOOKUP($K$32,Language!A:Y,71,FALSE),HLOOKUP($K$32,Language!A:Y,66,FALSE))","v":"°C"},null,null,null,null,null,null,null,null,null,null,null,null,null,null,null,null,null,null,null,null,null,null,"Czech",{"$f":"IF(PARAMETER_HL!J14=\"\",\"\",PARAMETER_HL!J14)","v":""}]
[null,{"$f":"IF($G$29=\"D\",HLOOKUP($K$32,Language!$A:$Y,61,0),\"\")","v":"TEPLOTA NA VRATNÉ VĚTVI "},{"$f":"IF(G29=\"E\",\"\",\"(Tr)\")","v":"(Tr)"},null,{"$f":"IF($G$29=\"D\",HLOOKUP($K$32,Language!A:Y,72,FALSE),\"\")","v":"°C"},null,{"$f":"HLOOKUP($K$32,Language!$A:$Y,25,0)","v":"ZDROJ"},{"$f":"PARAMETER_R!C31","v":0},{"$f":"HLOOKUP($K$32,Language!$A:$Y,29,0)","v":"TLAK PŘÍDAVNÉHO ČERPADLA"},null,null,null,null,null,null,null,null,null,null,null,null,null,null,null,null,null,null,"ITALIAN",{"$f":"IF(PARAMETER_HL!J15=\"\",\"\",PARAMETER_HL!J15)","v":""}]
[null,{"$f":"HLOOKUP($K$32,Language!A:Y,10,0)","v":"TEPLOTNÍ SPÁD (Tp-Tv)"},null,{"$f":"IF(G29=\"E\",HLOOKUP($K$32,Language!$A:$Y,36,0),D11-D12)","v":0},"K",null,{"$f":"HLOOKUP($K$32,Language!$A:$Y,26,0)","v":"TEPLOTNÍ SPÁD "},null,{"$f":"HLOOKUP($K$32,Language!$A:$Y,30,0)","v":"Teplota° C"},{"$f":"HLOOKUP($K$32,Language!$A:$Y,31,0)","v":"Tlaková ztráta bar"},{"$f":"HLOOKUP($K$32,Language!$A:$Y,32,0)","v":"Dimenze (DA)"},{"$f":"HLOOKUP($K$32,Language!$A:$Y,33,0)","v":"KONEČNÝ BOD"},null,null,null,null,null,null,null,null,null,null,null,null,null,null,null,"HUNGARIAN",{"$f":"IF(PARAMETER_HL!J16=\"\",\"\",PARAMETER_HL!J16)","v":""}]
[null,{"$f":"HLOOKUP($K$32,Language!$A:$Y,62,0)","v":"DÉLKA TRASY"},null,null,{"$f":"HLOOKUP($K$32,Language!A:Y,73,FALSE)","v":"m "},null,{"$f":"IF(G29=\"E\",HLOOKUP($K$32,Language!$A:$Y,27,0),D13)","v":0},null,null,null,null,null,null,null,null,null,null,null,null,null,null,null,null,null,null,null,null,"CROATIAN",{"$f":"IF(PARAMETER_HL!J17=\"\",\"\",PARAMETER_HL!J17)","v":""}]
[null,{"$f":"IF($G$29=\"D\",HLOOKUP($K$32,Language!$A:$Y,63,0),HLOOKUP($K$32,Language!$A:$Y,57,0))","v":"PŘENESENÝ VÝKON"},null,null,{"$f":"IF(G29=\"D\",HLOOKUP($K$32,Language!A:Y,74,FALSE),HLOOKUP($K$32,Language!A:Y,68,FALSE))","v":"kW"},null,null,{"$f":"HLOOKUP($K$32,Language!$A:$Y,34,0)","v":"PŘÍVODNÍ VĚTEV"},{"$f":"D11","v":0},{"$f":"D26/100000","v":0},{"$f":"D24","v":25},null,null,null,null,null,null,null,null,null,null,null,null,null,null,null,null,"POLISH",{"$f":"IF(PARAMETER_HL!J18=\"\",\"\",PARAMETER_HL!J18)","v":""}]
[null,{"$f":"IF($G$29=\"D\",HLOOKUP($K$32,Language!$A:$Y,64,0),HLOOKUP($K$32,Language!$A:$Y,58,0))","v":"PŘÍDAVNÝ TLAK ČERPADLA"},null,null,{"$f":"IF($G$29=\"D\",HLOOKUP($K$32,Language!A:Y,69,FALSE),HLOOKUP($K$32,Language!A:Y,75,FALSE))","v":"bar"},null,{"$f":"HLOOKUP($K$32,Language!$A:$Y,28,0)","v":"ČERPADLO"},{"$f":"D11","v":0},null,null,{"$f":"IFERROR(D11-TEMPERATUR!C23,HLOOKUP($K$32,Language!$A:$Y,78,0))","v":"Choose product"},null,null,null,null,null,null,null,null,null,null,null,null,null,null,null,null,"Danish ",{"$f":"IF(PARAMETER_HL!J19=\"\",\"\",PARAMETER_HL!J19)","v":""}]
[null,null,null,null,null,null,{"$f":"IF(G29=\"E\",J15,J15+J17)+H12","v":0},{"$f":"HLOOKUP($K$32,Language!$A:$Y,35,0)","v":"VRATNÁ VĚTEV"},{"$f":"IF(G29=\"E\",\"------\",D12)","v":0},{"$f":"IFERROR(D27/100000,0)","v":0},{"$f":"IF(G29=\"E\",\"------\",D24)","v":25},null,null,null,null,null,null,null,null,null,null,null,null,null,null,null,null,"Norweigian ",{"$f":"IF(PARAMETER_HL!J20=\"\",\"\",PARAMETER_HL!J20)","v":""}]
[null,{"$f":"HLOOKUP($K$32,Language!A:Y,7,0)","v":"PŘIZPŮSOBENÍ DIMENZE"},null,1,"x",null,{"$f":"D21 * 3.6","v":0},{"$f":"IF(G29=\"E\",HLOOKUP($K$32,Language!$A:$Y,36,0),D12)","v":0},null,null,{"$f":"IFERROR(IF(G29=\"E\",HLOOKUP($K$32,Language!$A:$Y,36,0),H18+TEMPERATUR!D23),HLOOKUP($K$32,Language!$A:$Y,78,0))","v":"Choose product"},null,null,null,null,null,null,null,null,null,null,null,null,null,null,null,null,"Swedish",{"$f":"IF(PARAMETER_HL!J21=\"\",\"\",PARAMETER_HL!J21)","v":""}]
[null,null,null," ",null,null,null,null,{"$f":"PARAMETER_R!C28","v":0},null,null,null,null,null,null,null,null,null,null,null,null,null,null,null,null,null,null,null,{"$f":"IF(PARAMETER_HL!J22=\"\",\"\",PARAMETER_HL!J22)","v":""}]
[null,{"$f":"HLOOKUP($K$32,Language!A:Y,12,0)","v":"VÝKON ZDROJE (kW)"},null,{"$f":"PARAMETER_R!C29","v":0},"kW",null,null,null,null,null,null,null,null,null,null,null,null,null,null,null,null,null,null,null,null,null,null,null,{"$f":"IF(PARAMETER_HL!J23=\"\",\"\",PARAMETER_HL!J23)","v":""}]
[null,{"$f":"HLOOKUP($K$32,Language!A:Y,13,0)","v":"OBJEMOVÝ PRŮTOK"},null,{"$f":"IF(G29<>\"E\",IF(D20=0,PARAMETER_R!C30,(D20*1000/(D13* 4196))),IF(PARAMETER_R!C30=0,0.00000000001,PARAMETER_R!C30))","v":0},"l/s",null,{"$f":"HLOOKUP($K$32,Language!$A:$Y,37,0)","v":"Teplota zeminy"},10,null,{"$f":"HLOOKUP($K$32,Language!$A:$Y,40,0)","v":"Teplotní ztráta - přívod."},null,{"$f":"IFERROR(H16-K16,HLOOKUP($K$32,Language!$A:$Y,78,0))","v":"Choose product"},null,null,null,null,null,null,null,null,null,null,null,null,null,null,null,null,{"$f":"IF(PARAMETER_HL!J24=\"\",\"\",PARAMETER_HL!J24)","v":""}]
[null,{"$f":"HLOOKUP($K$32,Language!A:Y,14,0)","v":"CELKOVÁ DÉLKA POTRUBÍ"},null,{"$f":"IF(G29=\"E\",PARAMETER_R!C28,PARAMETER_R!C28*2)","v":0},"m",null,{"$f":"HLOOKUP($K$32,Language!$A:$Y,38,0)","v":"Výška krytí"},800,null,{"$f":"HLOOKUP($K$32,Language!$A:$Y,41,0)","v":"Délka trasy"},null,{"$f":"PARAMETER_R!C28","v":0}]
[null,null,null,null,null,null,{"$f":"HLOOKUP($K$32,Language!$A:$Y,39,0)","v":"Lambda zeminy"},1,null,{"$f":"HLOOKUP($K$32,Language!$A:$Y,42,0)","v":"Prodleva - přívodní větev"},null,{"$f":"IFERROR(TEMPERATUR!C13,0)","v":0}]
[null,{"$f":"HLOOKUP($K$32,Language!$A:$Y,15,0)","v":"DA (DIMENZE)"},null,{"$f":"IF(D21*D18<PARAMETER_R!$J$7,      PARAMETER_R!$A$7,      LOOKUP(D21*D18,PARAMETER_R!$J$7:$J$21,PARAMETER_R!$A$7:$A$21))","v":25}]
[null,{"$f":"HLOOKUP($K$32,Language!$A:$Y,16,0)","v":"RYCHLOST PROUDĚNÍ"},{"$f":"IF(D25>5,\"v<5m/s\",\"\")","v":""},{"$f":"D21/((LOOKUP(D24,PARAMETER_R!$A$7:$A$21,PARAMETER_R!$B$7:$B$21)/2)^2*PI()*0.001)","v":0},null,null,{"$f":"HLOOKUP($K$32,Language!$A:$Y,43,0)","v":"Tlaková řada"},{"$f":"IF(D24>110,6,8)","v":8},{"$f":"HLOOKUP($K$32,Language!$A:$Y,47,0)","v":"při 95°C"}]
[null,{"$f":"HLOOKUP($K$32,Language!$A:$Y,17,0)","v":"TLAK. ZTRÁTA NA PŘÍV. VĚTVI"},null,{"$f":"PARAMETER_R!C28*D25^PARAMETER_R!$B$1*LOOKUP(D24,PARAMETER_R!$A$7:$A$21,PARAMETER_R!$C$7:$C$21)*(PARAMETER_R!$B$2^((90-$D$11)/10))","v":0},null,null,{"$f":"HLOOKUP($K$32,Language!$A:$Y,44,0)","v":"Maximální tlak"},{"$f":"PARAMETER_R!G24","v":16.388449863675987},{"$f":"HLOOKUP($K$32,Language!$A:$Y,48,0)","v":"při provozní teplotě"}]
[null,{"$f":"HLOOKUP($K$32,Language!$A:$Y,18,0)","v":"TLAK. ZTRÁTA NA VRAT.VĚTVI"},null,{"$f":"IF(G29=\"E\",\"------\",PARAMETER_R!C28*D25^PARAMETER_R!$B$1*LOOKUP(D24,PARAMETER_R!$A$7:$A$21,PARAMETER_R!$C$7:$C$21)*(PARAMETER_R!$B$2^((90-D12)/10)))","v":0},null,null,{"$f":"HLOOKUP($K$32,Language!$A:$Y,45,0)","v":"Tlaková ztráta"},{"$f":"J15+J17","v":0},{"$f":"HLOOKUP($K$32,Language!$A:$Y,49,0)","v":"Pouze pro potr.FLEXALEN"}]
[null,{"$f":"HLOOKUP($K$32,Language!$A:$Y,19,0)","v":"TLAKOVÁ ZTRÁTA CELKEM"},null,{"$f":"IF(G29=\"E\",D26,D26+D27)","v":0},null,null,{"$f":"HLOOKUP($K$32,Language!$A:$Y,46,0)","v":"Tlaková rezerva"},{"$f":"H26-((D28/100000)+H12)","v":16.388449863675987},{"$f":"HLOOKUP($K$32,Language!$A:$Y,50,0)","v":"při provozní teplotě"}]
[null,null,null,null,null,null,"D"]
[null,{"$f":"HLOOKUP($K$32,Language!$A:$Y,76,0)","v":"SELECT A FLEXALEN PRODUCT"},null,null,null,null,null,{"$f":"IF(G29=\"E\",HLOOKUP($K$32,Language!B:Y,20,0),HLOOKUP($K$32,Language!B:Y,21,0))","v":"TOPENÍ/CHLAZENÍ(P/V)"}]
[null,null,null,{"$f":"VLOOKUP(D30,Product_description!A:G,7,0)","v":"  /  "}]
[null,{"$f":"HLOOKUP($K$32,Language!$A:$Y,77,0)","v":"HEAT LOSS PER m' TRENCH LENGTH"},null,{"$f":"IFERROR(TEMPERATUR!C14+TEMPERATUR!D14,HLOOKUP($K$32,Language!$A:$Y,78,0))","v":"Choose product"},"W/m",null,null,null,null,"LANGUAGE:   ","Czech"]
[null,{"$f":"HLOOKUP($K$32,Language!$A:$Y,79,0)","v":"HEAT LOSS TOTAL"},null,{"$f":"IFERROR(D32*D14/1000,HLOOKUP($K$32,Language!$A:$Y,78,0))","v":"Choose product"},"kW"]

{"sheet":"PRINTOUT","index":2,"n_rows":33,"n_cols":11,"rows_kept":33,"cut":false,"hidden":false,"merged":[]}
[]
[null,{"$f":"CALC!B3","v":"VÝPOČET POTRUBÍ PRO TRUBNÍ VEDENÍ - SPOJENÍ DVOU BODŮJEDNOTRUBNÍM NEBO DVOUTRUBNÍM VEDENÍM"}]
[null,{"$f":"CALC!B4","v":"FLEXALEN - PŘEDIZOLOVANÉ POTRUBNÍ SYSTÉMY"}]
[null,{"$f":"CALC!B5","v":"VYVINUTO PRO ROZVODY VODY A SYSTÉMY DÁLKOVÉHO TOPENÍ "}]
[]
[]
[null,null,null,null,null,null,null,null,{"$f":"CALC!B24","v":"DA (DIMENZE)"},null,{"$f":"CALC!D24","v":25}]
[null,null,null,null,null,null,null,null,{"$f":"CALC!B25","v":"RYCHLOST PROUDĚNÍ"},null,{"$f":"CALC!D25","v":0}]
[null,"FLEXALEN",null,{"$f":"CALC!H30","v":"TOPENÍ/CHLAZENÍ(P/V)"},null,null,null,null,{"$f":"CALC!B21","v":"OBJEMOVÝ PRŮTOK"},null,{"$f":"CALC!D21","v":0}]
[null,null,null,null,null,null,null,null,{"$f":"CALC!B20","v":"VÝKON ZDROJE (kW)"},null,{"$f":"CALC!D20","v":0}]
[null,null,null,null,null,null,null,null,{"$f":"CALC!B13","v":"TEPLOTNÍ SPÁD (Tp-Tv)"},null,{"$f":"CALC!D13","v":0}]
[null,null,null,null,null,null,null,null,{"$f":"CALC!G8","v":"POUŽITELNÝ TEPELNÝ SPÁD"},null,{"$f":"CALC!I8","v":"Choose product"}]
[null,{"$f":"CALC!G12","v":"ZDROJ"},{"$f":"CALC!H12","v":0},{"$f":"CALC!I12","v":"TLAK PŘÍDAVNÉHO ČERPADLA"},null,null,null,null,{"$f":"CALC!G9","v":"POUŽITELNÉ ZATÍŽENÍ"},null,{"$f":"CALC!I9","v":"Choose product"}]
[null,"DELTA T",null,{"$f":"CALC!I13","v":"Teplota° C"},{"$f":"CALC!J13","v":"Tlaková ztráta bar"},{"$f":"CALC!K13","v":"Dimenze (DA)"},{"$f":"CALC!L13","v":"KONEČNÝ BOD"},null,{"$f":"CALC!B26","v":"TLAK. ZTRÁTA NA PŘÍV. VĚTVI"},null,{"$f":"CALC!D26","v":0}]
[null,{"$f":"CALC!G14","v":0},null,null,null,null,null,null,{"$f":"CALC!B27","v":"TLAK. ZTRÁTA NA VRAT.VĚTVI"},null,{"$f":"CALC!D27","v":0}]
[null,null,{"$f":"CALC!H15","v":"PŘÍVODNÍ VĚTEV"},{"$f":"CALC!I15","v":0},{"$f":"CALC!J15","v":0},{"$f":"CALC!K15","v":25},null,null,{"$f":"CALC!B28","v":"TLAKOVÁ ZTRÁTA CELKEM"},null,{"$f":"CALC!D28","v":0}]
[null,{"$f":"CALC!G16","v":"ČERPADLO"},{"$f":"CALC!H16","v":0},null,null,{"$f":"CALC!K16","v":"Choose product"}]
[null,{"$f":"CALC!G17","v":0},{"$f":"CALC!H17","v":"VRATNÁ VĚTEV"},{"$f":"CALC!I17","v":0},{"$f":"CALC!J17","v":0},{"$f":"CALC!K17","v":25},null,null,{"$f":"CALC!G25","v":"Tlaková řada"},{"$f":"CALC!I25","v":"při 95°C"},{"$f":"CALC!H25","v":8}]
[null,{"$f":"CALC!G18","v":0},{"$f":"CALC!H18","v":0},null,null,{"$f":"CALC!K18","v":"Choose product"},null,null,{"$f":"CALC!G26","v":"Maximální tlak"},{"$f":"CALC!I26","v":"při provozní teplotě"},{"$f":"CALC!H26","v":16.388449863675987}]
[null,null,null,{"$f":"CALC!I19","v":0},null,null,null,null,{"$f":"CALC!G27","v":"Tlaková ztráta"},{"$f":"CALC!I27","v":"Pouze pro potr.FLEXALEN"},{"$f":"CALC!H27","v":0}]
[null,null,null,null,null,null,null,null,{"$f":"CALC!G28","v":"Tlaková rezerva"},{"$f":"CALC!I28","v":"při provozní teplotě"},{"$f":"CALC!H28","v":16.388449863675987}]
[]
[null,null,null,null,null,null,null,null,{"$f":"CALC!G21","v":"Teplota zeminy"},null,{"$f":"CALC!H21","v":10}]
[null,null,null,null,null,null,null,null,{"$f":"CALC!G22","v":"Výška krytí"},null,{"$f":"CALC!H22","v":800}]
[null,null,null,null,null,null,null,null,{"$f":"CALC!G23","v":"Lambda zeminy"},null,{"$f":"CALC!H23","v":1}]
[null,null,null,null,null,null,null,null,{"$f":"CALC!J21","v":"Teplotní ztráta - přívod."},null,{"$f":"CALC!L21","v":"Choose product"}]
[null,null,null,null,null,null,null,null,{"$f":"CALC!J22","v":"Délka trasy"},null,{"$f":"CALC!L22","v":0}]
[null,null,null,null,null,null,null,null,{"$f":"CALC!J23","v":"Prodleva - přívodní větev"},null,{"$f":"CALC!L23","v":0}]
[null,null,null,null,null,null,null,null,{"$f":"CALC!G10","v":"OBSAH SÍTĚ"},null,{"$f":"CALC!I10","v":0}]
[]
[null,null,null,null,null,null,null,null,{"$f":"HLOOKUP(CALC!$K$32,Language!$A:$Y,80,0)","v":"FLEXALEN Product"},null,{"$f":"CALC!D30","v":0}]
[null,null,null,null,null,null,null,null,"Product description",null,{"$f":"VLOOKUP(K31,Product_description!A:G,7,0)","v":"  /  "}]
[null,null,null,null,null,null,null,null,{"$f":"HLOOKUP(CALC!$K$32,Language!$A:$Y,81,0)","v":"Quantity"},null,{"$f":"IF(OR(CALC!$G$29=\"e\",AND(CALC!$G$29=\"d\",VLOOKUP(K31,PARAMETER_HL!E:Z,22,0)=\"d\")),CALC!D14,2*CALC!D14)","v":{"$error":"#N/A"}}]

{"sheet":"INFO","index":3,"n_rows":39,"n_cols":4,"rows_kept":39,"cut":false,"hidden":false,"merged":[[7,1,7,2],[8,1,8,2],[9,1,9,2],[6,0,6,2]]}
["INFORMATION"]
[]
["SIZE TUNING ","Change the calculated pipe size"]
[]
["With the “Size tuning” factor you are able changing the diameter calculated by the software by simulating higher or lower heat loads or volumetric flows."]
[]
["Size tuning – factor"]
["<1","Pipe diameter will decrease"]
[1,"Standard setting"]
[">1","Pipe diameter increase"]
[]
[]
["PIPE SIZING","Recommendations for pipe sizing "]
["Below you find the recommended velocities recommended for FLEXALEN PB-H SDR11 service pipes in District / Local heating applications."]
["At house entries we don't recommend higher velocities then 2.5 m/s due to creation of disturbing noise (depending on the situation)."]
[]
["O.D.","I.D.","v min","v max"]
["[mm]","[mm]","[m/s]","[m/s]"]
[25,20.399999999999999,0.32,1.21]
[32,26,0.37,1.32]
[40,32.6,0.45,1.43]
[50,40.799999999999997,0.5,1.54]
[63,51.4,0.6,1.76]
[75,61.2,0.65,1.98]
[90,73.599999999999994,0.75,2.2000000000000002]
[110,90,0.85,2.5299999999999998]
[125,102.2,0.9,2.75]
[140,114.4,1,2.86]
[160,130.80000000000001,1.1000000000000001,3.19]
[225,184,1.4,3.96]
[315,257.8,1.6,5]
[]
["HEAT LOSS / TEMPERATURE DROP"]
["Please find below the used parameter for the calculation of U-values and Heat losses. "]
[]
["Thermal conductivity soil",null,null,"= 1 W/mK"]
["Pre-insulated pipe coverage",null,null,"= 0.8 m"]
["Soil temperature",null,null,"= 10°C"]
["Thermal resistance factor soil",null,null,"= 0.0685 m2.K/W"]

{"sheet":"HEATLOSS","index":4,"n_rows":10,"n_cols":4,"rows_kept":10,"cut":false,"hidden":true,"merged":[]}
[]
[]
[]
[]
[]
[]
[]
[]
[{"$f":"CALC!D30","v":0},{"$f":"PARAMETER_R!C28","v":0},{"$f":"CALC!#REF!","v":{"$error":"#REF!"}},{"$f":"B9*C9","v":{"$error":"#REF!"}}]
["Product","Trench length [m]","Heat loss [W/m]","Heat loss total [W]"]

{"sheet":"PARAMETER_R","index":5,"n_rows":31,"n_cols":13,"rows_kept":31,"cut":false,"hidden":true,"merged":[]}
["QF",1.83,"Materialkonstante für Rohrreibung",null,null,null,"KS-Druckkonstante A",null,1.008,"Multiplikator P-D ",null,0.75]
["TF",1.02,"Temperaturkonstante für dyn. Viskosität",null,null,null,"KS Druckkonstante B",null,1E-4,"Begrenzung ab D",null,125]
["Mediumdichte",0.98,"Mediumdichte des Rohrinhaltes",null,null,null,"Bodentemperatur °C",null,10,"max Druck bar Begrenzung",null,10]
["DRUCKVERLUSTE UND GRENZWERTE LAUT DATENBLATT",null,null,null,null,null,"Kunststoff",null,null,"DIMENSIONSFAKTOR"]
["DRUCKVERLUSTTABELLE","DI 1mm",21325,"PaT90/m","RN=",{"$f":"4^(1/7)","v":1.2190136542044754},"Pmax=",8,null,1,"ENTSPRICHT"]
["TYP","DI","PaT90/m","l/sec max","l/sec opt","L/sec min","v/min","V/max","V/optimal","AUSWAHL","Vmax"]
[25,20.399999999999999,540.04752961653776,0.39528957600000003,0.25873499519999998,0.10453939199999999,0.32,1.2100000000000002,0.79200000000000004,0.22661694000000002,1.2100000000000002]
[25,20.399999999999999,540.04752961653776,0.39528957600000003,0.25873499519999998,0.10453939199999999,0.32,1.2100000000000002,0.79200000000000004,0.22661694000000002,1.2100000000000002]
[25,20.399999999999999,{"$f":"$C$5/(B9^$F$5)","v":540.04752961653776},{"$f":"((B9/2)^2*3.14*H9)/1000","v":0.39528957600000003},{"$f":"((B9/2)^2*3.14*I9)/1000","v":0.25873499519999998},{"$f":"((B9/2)^2*3.14*G9)/1000","v":0.10453939199999999},0.32,1.2100000000000002,0.79200000000000004,0.22661694000000002,{"$f":"(J10*1000)/((B9/2)^2*3.14)","v":1.2100000000000002}]
[32,26,401.80673157834582,0.70047119999999996,0.4582249100000001,0.19634419999999997,0.37,1.32,0.86350000000000016,0.39528957600000003,1.32]
[40,32.6,304.9693004628171,1.1930012380000004,0.80298160250000017,0.37541997000000005,0.45,1.4300000000000002,0.96250000000000013,0.70047119999999996,1.4300000000000004,null,"ARBEITSBEREICH enspricht rotem Bereich!!"]
[50,40.799999999999997,231.99162596060424,2.0123832959999999,1.3655458079999998,0.65337119999999993,0.5,1.54,1.0449999999999999,1.1930012380000004,1.54]
[63,51.5,174.6516344511125,3.6643486000000007,2.5192396625000004,1.2492097499999999,0.6,1.7600000000000002,1.2100000000000002,2.0123832959999999,1.7600000000000002]
[75,61.2,141.51897017383027,5.8215373920000015,3.9618796140000008,1.9111107600000004,0.65,1.9800000000000002,1.3475000000000001,3.6643486000000007,1.98]
[90,73.599999999999994,113.0158858314764,9.3550899200000011,6.4316243200000001,3.1892351999999997,0.75,2.2000000000000002,1.5125000000000002,5.8215373920000015,2.2000000000000002]
[110,90,88.43837156190547,16.087004999999998,11.016101250000002,5.4047249999999991,0.85,2.5299999999999998,1.7325000000000002,9.3550899200000011,2.5299999999999998]
[125,102.2,75.742731052911211,22.547798350000004,15.332502878000003,7.3792794600000011,0.9,2.75,1.87,16.087004999999998,2.75]
[140,114.6,65.874127253098592,29.485257515999997,20.412870587999997,10.309530599999999,1,2.8600000000000003,1.9800000000000002,22.547798350000004,2.8600000000000003]
[160,130.80000000000001,56.068030294156699,42.842600856000011,29.546621280000011,14.773310640000005,1.1000000000000001,3.19,2.2000000000000002,29.485257515999997,3.19]
[225,184,36.986666322575978,105.24476160000003,73.086640000000017,37.207743999999998,1.4,3.9600000000000004,2.75,42.842600856000011,{"$f":"K19*(H20/H19)","v":3.96}]
[315,{"$f":"A21-(2*28.6)","v":257.8},24.518971268045032,260.85879700000004,154.95012541800006,83.47481504000001,1.6,5,2.9700000000000006,105.24476160000003]
[]
[]
[null,null,{"$f":"CALC!G29","v":"D"},null,"Pmax calc =",null,{"$f":"IF(CALC!D24<L2,IF(I1=0,H5,(I1+(C25*I2))^(90-C25)*H5),G25)","v":16.388449863675987},"bar"]
["TEMPERATUR VORLAUF",null,{"$f":"IF($C$24=\"E\",CALC!D11,CALC!D11)","v":0},null,"Pmax calc limit=",null,{"$f":"IF(((I1+(C25*I2))^(90-C25)*H5)*L1<L3,((I1+(C25*I2))^(90-C25)*H5)*L1,L3)","v":10},"bar"]
["TEMPERATUR RÜCKLAUF",null,{"$f":"IF($C$24=\"E\",0,CALC!D12)","v":0}]
["SPREIZUNG",null,{"$f":"IF($C$24=\"E\",0,CALC!D13)","v":0}]
["TRASSENLÄNGE",null,{"$f":"CALC!D14","v":0}]
["LEISTUNG kW",null,{"$f":"IF($C$24=\"E\",0,CALC!D15)","v":0}]
["MEDIUMMENGE",null,{"$f":"IF($C$24=\"E\",CALC!D15,0)","v":0}]
["VORDRUCK für Pumpe",null,{"$f":"CALC!D16","v":0}]

{"sheet":"TEMPERATUR","index":6,"n_rows":28,"n_cols":8,"rows_kept":28,"cut":false,"hidden":true,"merged":[]}
[]
["CALCULATION TEMPERATURE DROP:"]
[]
[null,"Supply line / Heating, Cooling",{"$f":"CALC!G29","v":"D"},"(E or D)"]
[null,"Product choosen",{"$f":"CALC!D30","v":0}]
[]
[null,null,"PIPE","PIPE"]
[null,null,"FLOW","RETURN"]
["O.D. ","Diameter pipe",{"$f":"CALC!$K$15","v":25},{"$f":"CALC!$K$17","v":25},"mm"]
["ϑ","Temperature medium",{"$f":"CALC!$D$11","v":0},{"$f":"CALC!$D$12","v":0},"°C"]
["mm","mass (medium) / m",{"$f":"((LOOKUP(C9,PARAMETER_R!$A$7:$A$20,PARAMETER_R!$B$7:$B$20)/2)^2*PI()*0.001)","v":0.32685129967948207},{"$f":"((LOOKUP(D9,PARAMETER_R!$A$7:$A$20,PARAMETER_R!$B$7:$B$20)/2)^2*PI()*0.001)","v":0.32685129967948207},"kg","water: 1l = 1kg "]
["mtot","mass total ",{"$f":"C11*PARAMETER_R!C28","v":0},{"$f":"D11*PARAMETER_R!C28","v":0},"kg","Total volume:",{"$f":"IF(ISERROR(D12),C12,C12+D12)","v":0},"l"]
["t","dwell time",{"$f":"PARAMETER_R!C28/CALC!$D$25","v":{"$error":"#DIV/0!"}},{"$f":"PARAMETER_R!C28/CALC!$D$25","v":{"$error":"#DIV/0!"}},"s"]
["Pm","Power loss (Heat loss) / m",{"$f":"IF(C4=\"E\",VLOOKUP($C$4&$C$5,PARAMETER_HL!$F$3:$I$88,4,0),VLOOKUP($C$4&$C$5,PARAMETER_HL!$F$3:$I$88,4,0)*0.5)","v":{"$error":"#N/A"}},{"$f":"IF(C4=\"E\",\"0\",VLOOKUP($C$4&$C$5,PARAMETER_HL!$F$3:$I$88,4,0)*0.5)","v":{"$error":"#N/A"}},"W"]
["Ptot","Heat loss total",{"$f":"C14*PARAMETER_R!C28","v":{"$error":"#N/A"}},{"$f":"D14*PARAMETER_R!C28","v":{"$error":"#N/A"}},"W"]
[]
["c","specific heat capacity (water)",4190,4190,"J / kg.K"]
[]
["E1","Engergy content",{"$f":"C11*C17*C10","v":0},{"$f":"D11*D17*D10","v":0},"J"]
["E2 ","Engergy loss due heat loss",{"$f":"C14*C13","v":{"$error":"#N/A"}},{"$f":"D14*D13","v":{"$error":"#N/A"}},"J"]
[]
["ϑ","Temperature medium",{"$f":"(C19-C20)/(C11*C17)","v":{"$error":"#N/A"}},{"$f":"(D19-D20)/(D11*D17)","v":{"$error":"#N/A"}},"°C"]
["ΔT","Temperature drop",{"$f":"C10-C22","v":{"$error":"#N/A"}},{"$f":"D10-D22","v":{"$error":"#N/A"}},"K"]
[]
[]
["Temperature difference:",null,{"$f":"CALC!$I$8","v":"Choose product"},"K"]
["Volumetric flow:",null,{"$f":"CALC!$D$21","v":0},"l/s"]
["Usable load",null,{"$f":"(C26*C27*C17)/1000","v":{"$error":"#VALUE!"}},"kW"]

{"sheet":"PARAMETER_HL","index":7,"n_rows":88,"n_cols":26,"rows_kept":88,"cut":false,"hidden":true,"merged":[]}
[{"$f":"CALC!D24","v":25},{"$f":"CALC!G29","v":"D"},null,null,null,null,null,null,null,"O.D. [mm]",32]
[null,null,null,null,null,null,null,null,"f=ϑ.x+d","Type","E"]
["O.D. [mm]","TF Range","Type",2,"TF code","help","U","d","[W/m]"]
[25,"F600","E",null,"1010-090025-001",{"$f":"C4&E4","v":"E1010-090025-001"},0.14799999999999999,null,{"$f":"G4*(CALC!$D$11-CALC!$H$21)","v":-1.48},"Zeilenbeschriftungen",null,null,null,null,null,null,null,null,null,null,null,null,null,null,null,{"$f":"D4","v":0}]
[32,"F600","E",null,"1010-090032-001","E1010-090032-001",0.182,null,{"$f":"G5*(CALC!$D$11-CALC!$H$21)","v":-1.8199999999999998},"1010-090032-001",null,null,null,null,null,null,null,null,null,null,null,null,null,null,null,{"$f":"D5","v":0}]
[40,"F600","E",null,"1010-090040-001","E1010-090040-001",0.23,null,{"$f":"G6*(CALC!$D$11-CALC!$H$21)","v":-2.3000000000000003},"1210-091032-001",null,null,null,null,null,null,null,null,null,null,null,null,null,null,null,0]
[50,"F600","E",null,"1010-125050-001","E1010-125050-001",0.219,null,{"$f":"G7*(CALC!$D$11-CALC!$H$21)","v":-2.19},"1000-090032-001",null,null,null,null,null,null,null,null,null,null,null,null,null,null,null,0]
[63,"F600","E",null,"1010-125063-001","E1010-125063-001",0.28999999999999998,null,{"$f":"G8*(CALC!$D$11-CALC!$H$21)","v":-2.9},null,null,null,null,null,null,null,null,null,null,null,null,null,null,null,null,0]
[75,"F600","E",null,"1010-160075-001","E1010-160075-001",0.26500000000000001,null,{"$f":"G9*(CALC!$D$11-CALC!$H$21)","v":-2.6500000000000004},null,null,null,null,null,null,null,null,null,null,null,null,null,null,null,null,0]
[90,"F600","E",null,"1010-160090-001","E1010-160090-001",0.33600000000000002,null,{"$f":"G10*(CALC!$D$11-CALC!$H$21)","v":-3.3600000000000003},null,null,null,null,null,null,null,null,null,null,null,null,null,null,null,null,0]
[110,"F600","E",null,"1000-200110-001","E1000-200110-001",0.35399999999999998,null,{"$f":"G11*(CALC!$D$11-CALC!$H$21)","v":-3.54},null,null,null,null,null,null,null,null,null,null,null,null,null,null,null,null,0]
[125,"F600","E",null,"1000-200125-001","E1000-200125-001",0.43,null,{"$f":"G12*(CALC!$D$11-CALC!$H$21)","v":-4.3},null,null,null,null,null,null,null,null,null,null,null,null,null,null,null,null,0]
[40,"F600","E",null,"1010-125040-001","E1010-125040-001",0.17799999999999999,null,{"$f":"G13*(CALC!$D$11-CALC!$H$21)","v":-1.7799999999999998},null,null,null,null,null,null,null,null,null,null,null,null,null,null,null,null,0]
[50,"F600","E",null,"1010-160050-001","E1010-160050-001",0.182,null,{"$f":"G14*(CALC!$D$11-CALC!$H$21)","v":-1.8199999999999998},null,null,null,null,null,null,null,null,null,null,null,null,null,null,null,null,0]
[63,"F600","E",null,"1010-160063-001","E1010-160063-001",0.222,null,{"$f":"G15*(CALC!$D$11-CALC!$H$21)","v":-2.2200000000000002},null,null,null,null,null,null,null,null,null,null,null,null,null,null,null,null,0]
[25,"FPU","E",null,"1210-091025-001","E1210-091025-001",0.10199999999999999,null,{"$f":"G16*(CALC!$D$11-CALC!$H$21)","v":-1.02},null,null,null,null,null,null,null,null,null,null,null,null,null,null,null,null,0]
[32,"FPU","E",null,"1210-091032-001","E1210-091032-001",0.126,null,{"$f":"G17*(CALC!$D$11-CALC!$H$21)","v":-1.26},null,null,null,null,null,null,null,null,null,null,null,null,null,null,null,null,0]
[40,"FPU","E",null,"1210-111040-001","E1210-111040-001",0.128,null,{"$f":"G18*(CALC!$D$11-CALC!$H$21)","v":-1.28},null,null,null,null,null,null,null,null,null,null,null,null,null,null,null,null,0]
[50,"FPU","E",null,"1210-126050-001","E1210-126050-001",0.14000000000000001,null,{"$f":"G19*(CALC!$D$11-CALC!$H$21)","v":-1.4000000000000001},null,null,null,null,null,null,null,null,null,null,null,null,null,null,null,null,0]
[63,"FPU","E",null,"1210-142063-001","E1210-142063-001",0.159,null,{"$f":"G20*(CALC!$D$11-CALC!$H$21)","v":-1.59},null,null,null,null,null,null,null,null,null,null,null,null,null,null,null,null,0]
[75,"FPU","E",null,"1210-162075-001","E1210-162075-001",0.16600000000000001,null,{"$f":"G21*(CALC!$D$11-CALC!$H$21)","v":-1.6600000000000001},null,null,null,null,null,null,null,null,null,null,null,null,null,null,null,null,0]
[90,"FPU","E",null,"1210-182090-001","E1210-182090-001",0.18,null,{"$f":"G22*(CALC!$D$11-CALC!$H$21)","v":-1.7999999999999998},null,null,null,null,null,null,null,null,null,null,null,null,null,null,null,null,0]
[110,"FPUSL","E",null,"1920-200110-030","E1920-200110-030",0.23699999999999999,null,{"$f":"G23*(CALC!$D$11-CALC!$H$21)","v":-2.37},null,null,null,null,null,null,null,null,null,null,null,null,null,null,null,null,0]
[125,"FPUSL","E",null,"1920-200125-030","E1920-200125-030",0.29199999999999998,null,{"$f":"G24*(CALC!$D$11-CALC!$H$21)","v":-2.92},null,null,null,null,null,null,null,null,null,null,null,null,null,null,null,null,0]
[140,"FPUSL","E",null,"1920-225140-030","E1920-225140-030",0.28999999999999998,null,{"$f":"G25*(CALC!$D$11-CALC!$H$21)","v":-2.9},null,null,null,null,null,null,null,null,null,null,null,null,null,null,null,null,0]
[160,"FPUSL","E",null,"1920-250160-030","E1920-250160-030",0.30599999999999999,null,{"$f":"G26*(CALC!$D$11-CALC!$H$21)","v":-3.06},null,null,null,null,null,null,null,null,null,null,null,null,null,null,null,null,0]
[225,"FPUSL","E",null,"1920-315225-030","E1920-315225-030",0.38900000000000001,null,{"$f":"G27*(CALC!$D$11-CALC!$H$21)","v":-3.89},null,null,null,null,null,null,null,null,null,null,null,null,null,null,null,null,0]
[315,"FPUSL","E",null,"1920-450315-010","E1920-450315-010",0.376,null,{"$f":"G28*(CALC!$D$11-CALC!$H$21)","v":-3.76},null,null,null,null,null,null,null,null,null,null,null,null,null,null,null,null,0]
[25,"F600","E",null,"1000-090025-001",{"$f":"C29&E29","v":"E1000-090025-001"},0.14799999999999999,null,{"$f":"G29*(CALC!$D$11-CALC!$H$21)","v":-1.48},null,null,null,null,null,null,null,null,null,null,null,null,null,null,null,null,0]
[32,"F600","E",null,"1000-090032-001","E1000-090032-001",0.182,null,{"$f":"G30*(CALC!$D$11-CALC!$H$21)","v":-1.8199999999999998},null,null,null,null,null,null,null,null,null,null,null,null,null,null,null,null,0]
[40,"F600","E",null,"1000-090040-001","E1000-090040-001",0.23,null,{"$f":"G31*(CALC!$D$11-CALC!$H$21)","v":-2.3000000000000003},null,null,null,null,null,null,null,null,null,null,null,null,null,null,null,null,0]
[50,"F600","E",null,"1000-090050-001","E1000-090050-001",0.31,null,{"$f":"G32*(CALC!$D$11-CALC!$H$21)","v":-3.1},null,null,null,null,null,null,null,null,null,null,null,null,null,null,null,null,0]
[50,"F600","E",null,"1000-125050-001","E1000-125050-001",0.219,null,{"$f":"G33*(CALC!$D$11-CALC!$H$21)","v":-2.19},null,null,null,null,null,null,null,null,null,null,null,null,null,null,null,null,0]
[63,"F600","E",null,"1000-125063-001","E1000-125063-001",0.28999999999999998,null,{"$f":"G34*(CALC!$D$11-CALC!$H$21)","v":-2.9},null,null,null,null,null,null,null,null,null,null,null,null,null,null,null,null,0]
[75,"F600","E",null,"1000-125075-001","E1000-125075-001",0.38300000000000001,null,{"$f":"G35*(CALC!$D$11-CALC!$H$21)","v":-3.83},null,null,null,null,null,null,null,null,null,null,null,null,null,null,null,null,0]
[75,"F600","E",null,"1000-160075-001",{"$f":"C36&E36","v":"E1000-160075-001"},0.26500000000000001,null,{"$f":"G36*(CALC!$D$11-CALC!$H$21)","v":-2.6500000000000004},null,null,null,null,null,null,null,null,null,null,null,null,null,null,null,null,0]
[90,"F600","E",null,"1000-160090-001","E1000-160090-001",0.33600000000000002,null,{"$f":"G37*(CALC!$D$11-CALC!$H$21)","v":-3.3600000000000003},null,null,null,null,null,null,null,null,null,null,null,null,null,null,null,null,0]
[40,"F600","E",null,"1000-125040-001","E1000-125040-001",0.17799999999999999,null,{"$f":"G38*(CALC!$D$11-CALC!$H$21)","v":-1.7799999999999998},null,null,null,null,null,null,null,null,null,null,null,null,null,null,null,null,0]
[50,"F600","E",null,"1000-160050-001","E1000-160050-001",0.182,null,{"$f":"G39*(CALC!$D$11-CALC!$H$21)","v":-1.8199999999999998},null,null,null,null,null,null,null,null,null,null,null,null,null,null,null,null,0]
[63,"F600","E",null,"1000-160063-001","E1000-160063-001",0.222,null,{"$f":"G40*(CALC!$D$11-CALC!$H$21)","v":-2.2200000000000002},null,null,null,null,null,null,null,null,null,null,null,null,null,null,null,null,0]
[25,"F600","D","SP","1010-090025-001","D1010-090025-001",0.14799999999999999,null,{"$f":"G41*(CALC!$D$11-CALC!$H$21)+G41*(CALC!$D$12-CALC!$H$21)","v":-2.96},null,null,null,null,null,null,null,null,null,null,null,null,null,null,null,null,"SP"]
[32,"F600","D","SP","1010-090032-001","D1010-090032-001",0.182,null,{"$f":"G42*(CALC!$D$11-CALC!$H$21)+G42*(CALC!$D$12-CALC!$H$21)","v":-3.6399999999999997},null,null,null,null,null,null,null,null,null,null,null,null,null,null,null,null,"SP"]
[40,"F600","D","SP","1010-090040-001","D1010-090040-001",0.23,null,{"$f":"G43*(CALC!$D$11-CALC!$H$21)+G43*(CALC!$D$12-CALC!$H$21)","v":-4.6000000000000005},null,null,null,null,null,null,null,null,null,null,null,null,null,null,null,null,"SP"]
[50,"F600","D","SP","1010-125050-001","D1010-125050-001",0.219,null,{"$f":"G44*(CALC!$D$11-CALC!$H$21)+G44*(CALC!$D$12-CALC!$H$21)","v":-4.38},null,null,null,null,null,null,null,null,null,null,null,null,null,null,null,null,"SP"]
[63,"F600","D","SP","1010-125063-001","D1010-125063-001",0.28999999999999998,null,{"$f":"G45*(CALC!$D$11-CALC!$H$21)+G45*(CALC!$D$12-CALC!$H$21)","v":-5.8},null,null,null,null,null,null,null,null,null,null,null,null,null,null,null,null,"SP"]
[75,"F600","D","SP","1010-160075-001","D1010-160075-001",0.26500000000000001,null,{"$f":"G46*(CALC!$D$11-CALC!$H$21)+G46*(CALC!$D$12-CALC!$H$21)","v":-5.3000000000000007},null,null,null,null,null,null,null,null,null,null,null,null,null,null,null,null,"SP"]
[90,"F600","D","SP","1010-160090-001","D1010-160090-001",0.33600000000000002,null,{"$f":"G47*(CALC!$D$11-CALC!$H$21)+G47*(CALC!$D$12-CALC!$H$21)","v":-6.7200000000000006},null,null,null,null,null,null,null,null,null,null,null,null,null,null,null,null,"SP"]
[110,"F600","D","SP","1000-200110-001","D1000-200110-001",0.35399999999999998,null,{"$f":"G48*(CALC!$D$11-CALC!$H$21)+G48*(CALC!$D$12-CALC!$H$21)","v":-7.08},null,null,null,null,null,null,null,null,null,null,null,null,null,null,null,null,"SP"]
[125,"F600","D","SP","1000-200125-001","D1000-200125-001",0.43,null,{"$f":"G49*(CALC!$D$11-CALC!$H$21)+G49*(CALC!$D$12-CALC!$H$21)","v":-8.6},null,null,null,null,null,null,null,null,null,null,null,null,null,null,null,null,"SP"]
[40,"F600","D","SP","1010-125040-001","D1010-125040-001",0.17799999999999999,null,{"$f":"G50*(CALC!$D$11-CALC!$H$21)+G50*(CALC!$D$12-CALC!$H$21)","v":-3.5599999999999996},null,null,null,null,null,null,null,null,null,null,null,null,null,null,null,null,"SP"]
[50,"F600","D","SP","1010-160050-001","D1010-160050-001",0.182,null,{"$f":"G51*(CALC!$D$11-CALC!$H$21)+G51*(CALC!$D$12-CALC!$H$21)","v":-3.6399999999999997},null,null,null,null,null,null,null,null,null,null,null,null,null,null,null,null,"SP"]
[63,"F600","D","SP","1010-160063-001","D1010-160063-001",0.222,null,{"$f":"G52*(CALC!$D$11-CALC!$H$21)+G52*(CALC!$D$12-CALC!$H$21)","v":-4.4400000000000004},null,null,null,null,null,null,null,null,null,null,null,null,null,null,null,null,"SP"]
[25,"FPU","D","SP","1210-091025-001","D1210-091025-001",0.10199999999999999,null,{"$f":"G53*(CALC!$D$11-CALC!$H$21)+G53*(CALC!$D$12-CALC!$H$21)","v":-2.04},null,null,null,null,null,null,null,null,null,null,null,null,null,null,null,null,"SP"]
[32,"FPU","D","SP","1210-091032-001","D1210-091032-001",0.126,null,{"$f":"G54*(CALC!$D$11-CALC!$H$21)+G54*(CALC!$D$12-CALC!$H$21)","v":-2.52},null,null,null,null,null,null,null,null,null,null,null,null,null,null,null,null,"SP"]
[40,"FPU","D","SP","1210-111040-001","D1210-111040-001",0.128,null,{"$f":"G55*(CALC!$D$11-CALC!$H$21)+G55*(CALC!$D$12-CALC!$H$21)","v":-2.56},null,null,null,null,null,null,null,null,null,null,null,null,null,null,null,null,"SP"]
[50,"FPU","D","SP","1210-126050-001","D1210-126050-001",0.14000000000000001,null,{"$f":"G56*(CALC!$D$11-CALC!$H$21)+G56*(CALC!$D$12-CALC!$H$21)","v":-2.8000000000000003},null,null,null,null,null,null,null,null,null,null,null,null,null,null,null,null,"SP"]
[63,"FPU","D","SP","1210-142063-001","D1210-142063-001",0.159,null,{"$f":"G57*(CALC!$D$11-CALC!$H$21)+G57*(CALC!$D$12-CALC!$H$21)","v":-3.18},null,null,null,null,null,null,null,null,null,null,null,null,null,null,null,null,"SP"]
[75,"FPU","D","SP","1210-162075-001","D1210-162075-001",0.16600000000000001,null,{"$f":"G58*(CALC!$D$11-CALC!$H$21)+G58*(CALC!$D$12-CALC!$H$21)","v":-3.3200000000000003},null,null,null,null,null,null,null,null,null,null,null,null,null,null,null,null,"SP"]
[90,"FPU","D","SP","1210-182090-001","D1210-182090-001",0.18,null,{"$f":"G59*(CALC!$D$11-CALC!$H$21)+G59*(CALC!$D$12-CALC!$H$21)","v":-3.5999999999999996},null,null,null,null,null,null,null,null,null,null,null,null,null,null,null,null,"SP"]
[110,"FPUSL","D","SP","1920-200110-030","D1920-200110-030",0.23699999999999999,null,{"$f":"G60*(CALC!$D$11-CALC!$H$21)+G60*(CALC!$D$12-CALC!$H$21)","v":-4.74},null,null,null,null,null,null,null,null,null,null,null,null,null,null,null,null,"SP"]
[125,"FPUSL","D","SP","1920-200125-030","D1920-200125-030",0.29199999999999998,null,{"$f":"G61*(CALC!$D$11-CALC!$H$21)+G61*(CALC!$D$12-CALC!$H$21)","v":-5.84},null,null,null,null,null,null,null,null,null,null,null,null,null,null,null,null,"SP"]
[140,"FPUSL","D","SP","1920-225140-030","D1920-225140-030",0.28999999999999998,null,{"$f":"G62*(CALC!$D$11-CALC!$H$21)+G62*(CALC!$D$12-CALC!$H$21)","v":-5.8},null,null,null,null,null,null,null,null,null,null,null,null,null,null,null,null,"SP"]
[160,"FPUSL","D","SP","1920-250160-030","D1920-250160-030",0.30599999999999999,null,{"$f":"G63*(CALC!$D$11-CALC!$H$21)+G63*(CALC!$D$12-CALC!$H$21)","v":-6.12},null,null,null,null,null,null,null,null,null,null,null,null,null,null,null,null,"SP"]
[225,"FPUSL","D","SP","1920-315225-030","D1920-315225-030",0.38900000000000001,null,{"$f":"G64*(CALC!$D$11-CALC!$H$21)+G64*(CALC!$D$12-CALC!$H$21)","v":-7.78},null,null,null,null,null,null,null,null,null,null,null,null,null,null,null,null,"SP"]
[315,"FPUSL","D","SP","1920-450315-010","D1920-450315-010",0.376,null,{"$f":"G65*(CALC!$D$11-CALC!$H$21)+G65*(CALC!$D$12-CALC!$H$21)","v":-7.52},null,null,null,null,null,null,null,null,null,null,null,null,null,null,null,null,"SP"]
[25,"F600","D","D","1030-125025-001","D1030-125025-001",0.221,null,{"$f":"G66*(((CALC!$D$11+CALC!$D$12)/2)-CALC!$H$21)","v":-2.21},null,null,null,null,null,null,null,null,null,null,null,null,null,null,null,null,"D"]
[32,"F600","D","D","1030-125032-001","D1030-125032-001",0.28299999999999997,null,{"$f":"G67*(((CALC!$D$11+CALC!$D$12)/2)-CALC!$H$21)","v":-2.8299999999999996},null,null,null,null,null,null,null,null,null,null,null,null,null,null,null,null,"D"]
[40,"F600","D","D","1030-160040-001",{"$f":"C68&E68","v":"D1030-160040-001"},0.255,null,{"$f":"G68*(((CALC!$D$11+CALC!$D$12)/2)-CALC!$H$21)","v":-2.5499999999999998},null,null,null,null,null,null,null,null,null,null,null,null,null,null,null,null,"D"]
[50,"F600","D","D","1030-160050-001","D1030-160050-001",0.33800000000000002,null,{"$f":"G69*(((CALC!$D$11+CALC!$D$12)/2)-CALC!$H$21)","v":-3.3800000000000003},null,null,null,null,null,null,null,null,null,null,null,null,null,null,null,null,{"$f":"D69","v":"D"}]
[63,"F600","D","D","1030-200063-001","D1030-200063-001",0.36299999999999999,null,{"$f":"G70*(((CALC!$D$11+CALC!$D$12)/2)-CALC!$H$21)","v":-3.63},null,null,null,null,null,null,null,null,null,null,null,null,null,null,null,null,"D"]
[32,"F600","D","D","1030-160032-001","D1030-160032-001",0.20799999999999999,null,{"$f":"G71*(((CALC!$D$11+CALC!$D$12)/2)-CALC!$H$21)","v":-2.08},null,null,null,null,null,null,null,null,null,null,null,null,null,null,null,null,"D"]
[25,"FPU","D","D","1230-111025-001","D1230-111025-001",0.14599999999999999,null,{"$f":"G72*(((CALC!$D$11+CALC!$D$12)/2)-CALC!$H$21)","v":-1.46},null,null,null,null,null,null,null,null,null,null,null,null,null,null,null,null,"D"]
[32,"FPU","D","D","1230-126032-001","D1230-126032-001",0.16,null,{"$f":"G73*(((CALC!$D$11+CALC!$D$12)/2)-CALC!$H$21)","v":-1.6},null,null,null,null,null,null,null,null,null,null,null,null,null,null,null,null,"D"]
[40,"FPU","D","D","1230-142040-001","D1230-142040-001",0.17599999999999999,null,{"$f":"G74*(((CALC!$D$11+CALC!$D$12)/2)-CALC!$H$21)","v":-1.7599999999999998},null,null,null,null,null,null,null,null,null,null,null,null,null,null,null,null,"D"]
[50,"FPU","D","D","1230-182050-001","D1230-182050-001",0.17299999999999999,null,{"$f":"G75*(((CALC!$D$11+CALC!$D$12)/2)-CALC!$H$21)","v":-1.73},null,null,null,null,null,null,null,null,null,null,null,null,null,null,null,null,"D"]
[63,"FPU","D","D","1230-202063-001","D1230-202063-001",0.19800000000000001,null,{"$f":"G76*(((CALC!$D$11+CALC!$D$12)/2)-CALC!$H$21)","v":-1.98},null,null,null,null,null,null,null,null,null,null,null,null,null,null,null,null,"D"]
[75,"FPU","D","D","1230-202075-001","D1230-202075-001",0.25700000000000001,null,{"$f":"G77*(((CALC!$D$11+CALC!$D$12)/2)-CALC!$H$21)","v":-2.5700000000000003},null,null,null,null,null,null,null,null,null,null,null,null,null,null,null,null,"D"]
[null,null,null,null,null,"",null,null,null,null,null,null,null,null,null,null,null,null,null,null,null,null,null,null,null,0]
[null,null,null,null,null,"",null,null,null,null,null,null,null,null,null,null,null,null,null,null,null,null,null,null,null,0]
[null,null,null,null,null,"",null,null,null,null,null,null,null,null,null,null,null,null,null,null,null,null,null,null,null,0]
[null,null,null,null,null,"",null,null,null,null,null,null,null,null,null,null,null,null,null,null,null,null,null,null,null,0]
[null,null,null,null,null,"",null,null,null,null,null,null,null,null,null,null,null,null,null,null,null,null,null,null,null,0]
[null,null,null,null,null,"",null,null,null,null,null,null,null,null,null,null,null,null,null,null,null,null,null,null,null,0]
[null,null,null,null,null,"",null,null,null,null,null,null,null,null,null,null,null,null,null,null,null,null,null,null,null,0]
[null,null,null,null,null,"",null,null,null,null,null,null,null,null,null,null,null,null,null,null,null,null,null,null,null,0]
[null,null,null,null,null,"",null,null,null,null,null,null,null,null,null,null,null,null,null,null,null,null,null,null,null,0]
[null,null,null,null,null,"",null,null,null,null,null,null,null,null,null,null,null,null,null,null,null,null,null,null,null,0]
[null,null,null,null,null,"",null,null,null,null,null,null,null,null,null,null,null,null,null,null,null,null,null,null,null,0]

{"sheet":"Product_description","index":8,"n_rows":223,"n_cols":7,"rows_kept":223,"cut":false,"hidden":true,"merged":[]}
["Code","System","SP1","SP2","CP","ND","Description"]
[{"$f":"PARAMETER_HL!E4","v":"1010-090025-001"},"F600",25,null,90,"(DN20)",{"$f":"B2&\" \"&C2&D2&\" / \"&E2&\" \"&F2","v":"F600 25 / 90 (DN20)"}]
[{"$f":"PARAMETER_HL!E5","v":"1010-090032-001"},"F600",32,null,90,"(DN25)",{"$f":"B3&\" \"&C3&D3&\" / \"&E3&\" \"&F3","v":"F600 32 / 90 (DN25)"}]
[{"$f":"PARAMETER_HL!E6","v":"1010-090040-001"},"F600",40,null,90,"(DN32)","F600 40 / 90 (DN32)"]
[{"$f":"PARAMETER_HL!E7","v":"1010-125050-001"},"F600",50,null,125,"(DN40)","F600 50 / 125 (DN40)"]
[{"$f":"PARAMETER_HL!E8","v":"1010-125063-001"},"F600",63,null,125,"(DN50)","F600 63 / 125 (DN50)"]
[{"$f":"PARAMETER_HL!E9","v":"1010-160075-001"},"F600",75,null,160,"(DN65)","F600 75 / 160 (DN65)"]
[{"$f":"PARAMETER_HL!E10","v":"1010-160090-001"},"F600",90,null,160,"(DN80)","F600 90 / 160 (DN80)"]
[{"$f":"PARAMETER_HL!E11","v":"1000-200110-001"},"F600",110,null,200,"(DN100)","F600 110 / 200 (DN100)"]
[{"$f":"PARAMETER_HL!E12","v":"1000-200125-001"},"F600",125,null,200,"(DN100)","F600 125 / 200 (DN100)"]
[{"$f":"PARAMETER_HL!E13","v":"1010-125040-001"},"F600",40,null,125,"(DN32)","F600 40 / 125 (DN32)"]
[{"$f":"PARAMETER_HL!E14","v":"1010-160050-001"},"F600",50,null,160,"(DN40)","F600 50 / 160 (DN40)"]
[{"$f":"PARAMETER_HL!E15","v":"1010-160063-001"},"F600",63,null,160,"(DN50)","F600 63 / 160 (DN50)"]
[{"$f":"PARAMETER_HL!E16","v":"1210-091025-001"},"FPU",25,null,91,"(DN20)","FPU 25 / 91 (DN20)"]
[{"$f":"PARAMETER_HL!E17","v":"1210-091032-001"},"FPU",32,null,91,"(DN25)","FPU 32 / 91 (DN25)"]
[{"$f":"PARAMETER_HL!E18","v":"1210-111040-001"},"FPU",40,null,111,"(DN32)","FPU 40 / 111 (DN32)"]
[{"$f":"PARAMETER_HL!E19","v":"1210-126050-001"},"FPU",50,null,126,"(DN40)","FPU 50 / 126 (DN40)"]
[{"$f":"PARAMETER_HL!E20","v":"1210-142063-001"},"FPU",63,null,142,"(DN50)","FPU 63 / 142 (DN50)"]
[{"$f":"PARAMETER_HL!E21","v":"1210-162075-001"},"FPU",75,null,162,"(DN65)","FPU 75 / 162 (DN65)"]
[{"$f":"PARAMETER_HL!E22","v":"1210-182090-001"},"FPU",90,null,182,"(DN80)","FPU 90 / 182 (DN80)"]
[{"$f":"PARAMETER_HL!E23","v":"1920-200110-030"},"FPUSL",110,null,200,"(DN100)","FPUSL 110 / 200 (DN100)"]
[{"$f":"PARAMETER_HL!E24","v":"1920-200125-030"},"FPUSL",25,null,200,"(DN20)","FPUSL 25 / 200 (DN20)"]
[{"$f":"PARAMETER_HL!E25","v":"1920-225140-030"},"FPUSL",140,null,225,"(DN125)","FPUSL 140 / 225 (DN125)"]
[{"$f":"PARAMETER_HL!E26","v":"1920-250160-030"},"FPUSL",160,null,250,"(DN150)","FPUSL 160 / 250 (DN150)"]
[{"$f":"PARAMETER_HL!E27","v":"1920-315225-030"},"FPUSL",225,null,315,"(DN200)","FPUSL 225 / 315 (DN200)"]
[{"$f":"PARAMETER_HL!E28","v":"1920-450315-010"},"FPUSL",315,null,450,"(DN250)","FPUSL 315 / 450 (DN250)"]
[{"$f":"PARAMETER_HL!E29","v":"1000-090025-001"},"F600",25,null,90,"(DN20)","F600 25 / 90 (DN20)"]
[{"$f":"PARAMETER_HL!E30","v":"1000-090032-001"},"F600",32,null,90,"(DN25)","F600 32 / 90 (DN25)"]
[{"$f":"PARAMETER_HL!E31","v":"1000-090040-001"},"F600",40,null,90,"(DN32)","F600 40 / 90 (DN32)"]
[{"$f":"PARAMETER_HL!E32","v":"1000-090050-001"},"F600",50,null,90,"(DN40)","F600 50 / 90 (DN40)"]
[{"$f":"PARAMETER_HL!E33","v":"1000-125050-001"},"F600",50,null,125,"(DN40)","F600 50 / 125 (DN40)"]
[{"$f":"PARAMETER_HL!E34","v":"1000-125063-001"},"F600",63,null,125,"(DN50)","F600 63 / 125 (DN50)"]
[{"$f":"PARAMETER_HL!E35","v":"1000-125075-001"},"F600",75,null,125,"(DN65)","F600 75 / 125 (DN65)"]
[{"$f":"PARAMETER_HL!E36","v":"1000-160075-001"},"F600",75,null,160,"(DN65)","F600 75 / 160 (DN65)"]
[{"$f":"PARAMETER_HL!E37","v":"1000-160090-001"},"F600",90,null,160,"(DN80)","F600 90 / 160 (DN80)"]
[{"$f":"PARAMETER_HL!E38","v":"1000-125040-001"},"F600",40,null,125,"(DN32)","F600 40 / 125 (DN32)"]
[{"$f":"PARAMETER_HL!E39","v":"1000-160050-001"},"F600",50,null,160,"(DN40)","F600 50 / 160 (DN40)"]
[{"$f":"PARAMETER_HL!E40","v":"1000-160063-001"},"F600",63,null,160,"(DN50)","F600 63 / 160 (DN50)"]
[{"$f":"PARAMETER_HL!E41","v":"1010-090025-001"},"F600",25,null,90,"(DN20)","F600 25 / 90 (DN20)"]
[{"$f":"PARAMETER_HL!E42","v":"1010-090032-001"},"F600",32,null,90,"(DN25)","F600 32 / 90 (DN25)"]
[{"$f":"PARAMETER_HL!E43","v":"1010-090040-001"},"F600",40,null,90,"(DN32)","F600 40 / 90 (DN32)"]
[{"$f":"PARAMETER_HL!E44","v":"1010-125050-001"},"F600",50,null,125,"(DN40)","F600 50 / 125 (DN40)"]
[{"$f":"PARAMETER_HL!E45","v":"1010-125063-001"},"F600",63,null,125,"(DN50)","F600 63 / 125 (DN50)"]
[{"$f":"PARAMETER_HL!E46","v":"1010-160075-001"},"F600",75,null,160,"(DN65)","F600 75 / 160 (DN65)"]
[{"$f":"PARAMETER_HL!E47","v":"1010-160090-001"},"F600",90,null,160,"(DN80)","F600 90 / 160 (DN80)"]
[{"$f":"PARAMETER_HL!E48","v":"1000-200110-001"},"F600",110,null,200,"(DN100)","F600 110 / 200 (DN100)"]
[{"$f":"PARAMETER_HL!E49","v":"1000-200125-001"},"F600",125,null,200,"(DN100)","F600 125 / 200 (DN100)"]
[{"$f":"PARAMETER_HL!E50","v":"1010-125040-001"},"F600",40,null,125,"(DN32)","F600 40 / 125 (DN32)"]
[{"$f":"PARAMETER_HL!E51","v":"1010-160050-001"},"F600",50,null,160,"(DN40)","F600 50 / 160 (DN40)"]
[{"$f":"PARAMETER_HL!E52","v":"1010-160063-001"},"F600",63,null,160,"(DN50)","F600 63 / 160 (DN50)"]
[{"$f":"PARAMETER_HL!E53","v":"1210-091025-001"},"FPU",25,null,91,"(DN20)","FPU 25 / 91 (DN20)"]
[{"$f":"PARAMETER_HL!E54","v":"1210-091032-001"},"FPU",32,null,91,"(DN25)","FPU 32 / 91 (DN25)"]
[{"$f":"PARAMETER_HL!E55","v":"1210-111040-001"},"FPU",40,null,111,"(DN32)","FPU 40 / 111 (DN32)"]
[{"$f":"PARAMETER_HL!E56","v":"1210-126050-001"},"FPU",50,null,126,"(DN40)","FPU 50 / 126 (DN40)"]
[{"$f":"PARAMETER_HL!E57","v":"1210-142063-001"},"FPU",63,null,142,"(DN50)","FPU 63 / 142 (DN50)"]
[{"$f":"PARAMETER_HL!E58","v":"1210-162075-001"},"FPU",75,null,162,"(DN65)","FPU 75 / 162 (DN65)"]
[{"$f":"PARAMETER_HL!E59","v":"1210-182090-001"},"FPU",90,null,182,"(DN80)","FPU 90 / 182 (DN80)"]
[{"$f":"PARAMETER_HL!E60","v":"1920-200110-030"},"FPUSL",110,null,200,"(DN100)","FPUSL 110 / 200 (DN100)"]
[{"$f":"PARAMETER_HL!E61","v":"1920-200125-030"},"FPUSL",125,null,200,"(DN100)","FPUSL 125 / 200 (DN100)"]
[{"$f":"PARAMETER_HL!E62","v":"1920-225140-030"},"FPUSL",140,null,225,"(DN125)","FPUSL 140 / 225 (DN125)"]
[{"$f":"PARAMETER_HL!E63","v":"1920-250160-030"},"FPUSL",160,null,250,"(DN150)","FPUSL 160 / 250 (DN150)"]
[{"$f":"PARAMETER_HL!E64","v":"1920-315225-030"},"FPUSL",225,null,315,"(DN200)","FPUSL 225 / 315 (DN200)"]
[{"$f":"PARAMETER_HL!E65","v":"1920-450315-010"},"FPUSL",315,null,450,"(DN250)","FPUSL 315 / 450 (DN250)"]
[{"$f":"PARAMETER_HL!E66","v":"1030-125025-001"},"F600",25,25,125,"(DN 2x20)",{"$f":"B64&\" \"&C64&\"+\"&D64&\" / \"&E64&\" \"&F64","v":"F600 25+25 / 125 (DN 2x20)"}]
[{"$f":"PARAMETER_HL!E67","v":"1030-125032-001"},"F600",32,32,125,"(DN 2x25)","F600 32+32 / 125 (DN 2x25)"]
[{"$f":"PARAMETER_HL!E68","v":"1030-160040-001"},"F600",40,40,160,"(DN 2x32)","F600 40+40 / 160 (DN 2x32)"]
[{"$f":"PARAMETER_HL!E69","v":"1030-160050-001"},"F600",50,50,160,"(DN 2x40)","F600 50+50 / 160 (DN 2x40)"]
[{"$f":"PARAMETER_HL!E70","v":"1030-200063-001"},"F600",63,63,200,"(DN 2x50)","F600 63+63 / 200 (DN 2x50)"]
[{"$f":"PARAMETER_HL!E71","v":"1030-160032-001"},"F600",32,32,160,"(DN 2x25)","F600 32+32 / 160 (DN 2x25)"]
[{"$f":"PARAMETER_HL!E72","v":"1230-111025-001"},"FPU",25,25,111,"(DN 2x20)","FPU 25+25 / 111 (DN 2x20)"]
[{"$f":"PARAMETER_HL!E73","v":"1230-126032-001"},"FPU",32,32,126,"(DN 2x25)","FPU 32+32 / 126 (DN 2x25)"]
[{"$f":"PARAMETER_HL!E74","v":"1230-142040-001"},"FPU",40,40,142,"(DN 2x32)","FPU 40+40 / 142 (DN 2x32)"]
[{"$f":"PARAMETER_HL!E75","v":"1230-182050-001"},"FPU",50,50,182,"(DN 2x40)","FPU 50+50 / 182 (DN 2x40)"]
[{"$f":"PARAMETER_HL!E76","v":"1230-202063-001"},"FPU",63,63,202,"(DN 2x50)","FPU 63+63 / 202 (DN 2x50)"]
[{"$f":"PARAMETER_HL!E77","v":"1230-202075-001"},"FPU",75,75,202,"(DN 2x65)","FPU 75+75 / 202 (DN 2x65)"]
[{"$f":"PARAMETER_HL!E78","v":0},null,null,null,null,null,{"$f":"B76&\" \"&C76&D76&\" / \"&E76&\" \"&F76","v":"  /  "}]
[{"$f":"PARAMETER_HL!E79","v":0},null,null,null,null,null,"  /  "]
[{"$f":"PARAMETER_HL!E80","v":0},null,null,null,null,null,"  /  "]
[{"$f":"PARAMETER_HL!E81","v":0},null,null,null,null,null,"  /  "]
[{"$f":"PARAMETER_HL!E82","v":0},null,null,null,null,null,"  /  "]
[{"$f":"PARAMETER_HL!E83","v":0},null,null,null,null,null,"  /  "]
[{"$f":"PARAMETER_HL!E84","v":0},null,null,null,null,null,"  /  "]
[{"$f":"PARAMETER_HL!E85","v":0},null,null,null,null,null,"  /  "]
[{"$f":"PARAMETER_HL!E86","v":0},null,null,null,null,null,"  /  "]
[{"$f":"PARAMETER_HL!E87","v":0},null,null,null,null,null,"  /  "]
[{"$f":"PARAMETER_HL!E88","v":0},null,null,null,null,null,"  /  "]
[{"$f":"PARAMETER_HL!E89","v":0},null,null,null,null,null,"  /  "]
[{"$f":"PARAMETER_HL!E90","v":0},null,null,null,null,null,"  /  "]
[{"$f":"PARAMETER_HL!E91","v":0},null,null,null,null,null,"  /  "]
[{"$f":"PARAMETER_HL!E92","v":0},null,null,null,null,null,"  /  "]
[{"$f":"PARAMETER_HL!E93","v":0},null,null,null,null,null,"  /  "]
[{"$f":"PARAMETER_HL!E94","v":0},null,null,null,null,null,"  /  "]
[{"$f":"PARAMETER_HL!E95","v":0},null,null,null,null,null,"  /  "]
[{"$f":"PARAMETER_HL!E96","v":0},null,null,null,null,null,"  /  "]
[{"$f":"PARAMETER_HL!E97","v":0},null,null,null,null,null,"  /  "]
[{"$f":"PARAMETER_HL!E98","v":0},null,null,null,null,null,"  /  "]
[{"$f":"PARAMETER_HL!E99","v":0},null,null,null,null,null,"  /  "]
[{"$f":"PARAMETER_HL!E100","v":0},null,null,null,null,null,"  /  "]
[{"$f":"PARAMETER_HL!E101","v":0},null,null,null,null,null,"  /  "]
[{"$f":"PARAMETER_HL!E102","v":0},null,null,null,null,null,"  /  "]
[{"$f":"PARAMETER_HL!E103","v":0},null,null,null,null,null,"  /  "]
[{"$f":"PARAMETER_HL!E104","v":0},null,null,null,null,null,"  /  "]
[{"$f":"PARAMETER_HL!E105","v":0},null,null,null,null,null,"  /  "]
[{"$f":"PARAMETER_HL!E106","v":0},null,null,null,null,null,"  /  "]
[{"$f":"PARAMETER_HL!E107","v":0},null,null,null,null,null,"  /  "]
[{"$f":"PARAMETER_HL!E108","v":0},null,null,null,null,null,"  /  "]
[{"$f":"PARAMETER_HL!E109","v":0},null,null,null,null,null,"  /  "]
[{"$f":"PARAMETER_HL!E110","v":0},null,null,null,null,null,"  /  "]
[{"$f":"PARAMETER_HL!E111","v":0},null,null,null,null,null,"  /  "]
[{"$f":"PARAMETER_HL!E112","v":0},null,null,null,null,null,"  /  "]
[{"$f":"PARAMETER_HL!E113","v":0},null,null,null,null,null,"  /  "]
[{"$f":"PARAMETER_HL!E114","v":0},null,null,null,null,null,"  /  "]
[{"$f":"PARAMETER_HL!E115","v":0},null,null,null,null,null,"  /  "]
[{"$f":"PARAMETER_HL!E116","v":0},null,null,null,null,null,"  /  "]
[{"$f":"PARAMETER_HL!E117","v":0},null,null,null,null,null,"  /  "]
[{"$f":"PARAMETER_HL!E118","v":0},null,null,null,null,null,"  /  "]
[{"$f":"PARAMETER_HL!E119","v":0},null,null,null,null,null,"  /  "]
[{"$f":"PARAMETER_HL!E120","v":0},null,null,null,null,null,"  /  "]
[{"$f":"PARAMETER_HL!E121","v":0},null,null,null,null,null,"  /  "]
[{"$f":"PARAMETER_HL!E122","v":0},null,null,null,null,null,"  /  "]
[{"$f":"PARAMETER_HL!E123","v":0},null,null,null,null,null,"  /  "]
[{"$f":"PARAMETER_HL!E124","v":0},null,null,null,null,null,"  /  "]
[{"$f":"PARAMETER_HL!E125","v":0},null,null,null,null,null,"  /  "]
[{"$f":"PARAMETER_HL!E126","v":0},null,null,null,null,null,"  /  "]
[{"$f":"PARAMETER_HL!E127","v":0},null,null,null,null,null,"  /  "]
[{"$f":"PARAMETER_HL!E128","v":0},null,null,null,null,null,"  /  "]
[{"$f":"PARAMETER_HL!E129","v":0},null,null,null,null,null,"  /  "]
[{"$f":"PARAMETER_HL!E130","v":0},null,null,null,null,null,"  /  "]
[{"$f":"PARAMETER_HL!E131","v":0},null,null,null,null,null,"  /  "]
[{"$f":"PARAMETER_HL!E132","v":0},null,null,null,null,null,"  /  "]
[{"$f":"PARAMETER_HL!E133","v":0},null,null,null,null,null,{"$f":"B131&\" \"&C131&D131&\" / \"&E131&\" \"&F131","v":"  /  "}]
[{"$f":"PARAMETER_HL!E134","v":0},null,null,null,null,null,"  /  "]
[{"$f":"PARAMETER_HL!E135","v":0},null,null,null,null,null,"  /  "]
[{"$f":"PARAMETER_HL!E136","v":0},null,null,null,null,null,"  /  "]
[{"$f":"PARAMETER_HL!E137","v":0},null,null,null,null,null,"  /  "]
[{"$f":"PARAMETER_HL!E138","v":0},null,null,null,null,null,"  /  "]
[{"$f":"PARAMETER_HL!E139","v":0},null,null,null,null,null,"  /  "]
[{"$f":"PARAMETER_HL!E140","v":0},null,null,null,null,null,"  /  "]
[{"$f":"PARAMETER_HL!E141","v":0},null,null,null,null,null,"  /  "]
[{"$f":"PARAMETER_HL!E142","v":0},null,null,null,null,null,"  /  "]
[{"$f":"PARAMETER_HL!E143","v":0},null,null,null,null,null,"  /  "]
[{"$f":"PARAMETER_HL!E144","v":0},null,null,null,null,null,"  /  "]
[{"$f":"PARAMETER_HL!E145","v":0},null,null,null,null,null,"  /  "]
[{"$f":"PARAMETER_HL!E146","v":0},null,null,null,null,null,"  /  "]
[{"$f":"PARAMETER_HL!E147","v":0},null,null,null,null,null,"  /  "]
[{"$f":"PARAMETER_HL!E148","v":0},null,null,null,null,null,"  /  "]
[{"$f":"PARAMETER_HL!E149","v":0}]
[{"$f":"PARAMETER_HL!E150","v":0}]
[{"$f":"PARAMETER_HL!E151","v":0}]
[{"$f":"PARAMETER_HL!E152","v":0}]
[{"$f":"PARAMETER_HL!E153","v":0}]
[{"$f":"PARAMETER_HL!E154","v":0}]
[{"$f":"PARAMETER_HL!E155","v":0}]
[{"$f":"PARAMETER_HL!E156","v":0}]
[{"$f":"PARAMETER_HL!E157","v":0}]
[{"$f":"PARAMETER_HL!E158","v":0}]
[{"$f":"PARAMETER_HL!E159","v":0}]
[{"$f":"PARAMETER_HL!E160","v":0}]
[{"$f":"PARAMETER_HL!E161","v":0}]
[{"$f":"PARAMETER_HL!E162","v":0}]
[{"$f":"PARAMETER_HL!E163","v":0}]
[{"$f":"PARAMETER_HL!E164","v":0}]
[{"$f":"PARAMETER_HL!E165","v":0}]
[{"$f":"PARAMETER_HL!E166","v":0}]
[{"$f":"PARAMETER_HL!E167","v":0}]
[{"$f":"PARAMETER_HL!E168","v":0}]
[{"$f":"PARAMETER_HL!E169","v":0}]
[{"$f":"PARAMETER_HL!E170","v":0}]
[{"$f":"PARAMETER_HL!E171","v":0}]
[{"$f":"PARAMETER_HL!E172","v":0}]
[{"$f":"PARAMETER_HL!E173","v":0}]
[{"$f":"PARAMETER_HL!E174","v":0}]
[{"$f":"PARAMETER_HL!E175","v":0}]
[{"$f":"PARAMETER_HL!E176","v":0}]
[{"$f":"PARAMETER_HL!E177","v":0}]
[{"$f":"PARAMETER_HL!E178","v":0}]
[{"$f":"PARAMETER_HL!E179","v":0}]
[{"$f":"PARAMETER_HL!E180","v":0}]
[{"$f":"PARAMETER_HL!E181","v":0}]
[{"$f":"PARAMETER_HL!E182","v":0}]
[{"$f":"PARAMETER_HL!E183","v":0}]
[{"$f":"PARAMETER_HL!E184","v":0}]
[{"$f":"PARAMETER_HL!E185","v":0}]
[{"$f":"PARAMETER_HL!E186","v":0}]
[{"$f":"PARAMETER_HL!E187","v":0}]
[{"$f":"PARAMETER_HL!E188","v":0}]
[{"$f":"PARAMETER_HL!E189","v":0}]
[{"$f":"PARAMETER_HL!E190","v":0}]
[{"$f":"PARAMETER_HL!E191","v":0}]
[{"$f":"PARAMETER_HL!E192","v":0}]
[{"$f":"PARAMETER_HL!E193","v":0}]
[{"$f":"PARAMETER_HL!E194","v":0}]
[{"$f":"PARAMETER_HL!E195","v":0}]
[{"$f":"PARAMETER_HL!E196","v":0}]
[{"$f":"PARAMETER_HL!E197","v":0}]
[{"$f":"PARAMETER_HL!E198","v":0}]
[{"$f":"PARAMETER_HL!E199","v":0}]
[{"$f":"PARAMETER_HL!E200","v":0}]
[{"$f":"PARAMETER_HL!E201","v":0}]
[{"$f":"PARAMETER_HL!E202","v":0}]
[{"$f":"PARAMETER_HL!E203","v":0}]
[{"$f":"PARAMETER_HL!E204","v":0}]
[{"$f":"PARAMETER_HL!E205","v":0}]
[{"$f":"PARAMETER_HL!E206","v":0}]
[{"$f":"PARAMETER_HL!E207","v":0}]
[{"$f":"PARAMETER_HL!E208","v":0}]
[{"$f":"PARAMETER_HL!E209","v":0}]
[{"$f":"PARAMETER_HL!E210","v":0}]
[{"$f":"PARAMETER_HL!E211","v":0}]
[{"$f":"PARAMETER_HL!E212","v":0}]
[{"$f":"PARAMETER_HL!E213","v":0}]
[{"$f":"PARAMETER_HL!E214","v":0}]
[{"$f":"PARAMETER_HL!E215","v":0}]
[{"$f":"PARAMETER_HL!E216","v":0}]
[{"$f":"PARAMETER_HL!E217","v":0}]
[{"$f":"PARAMETER_HL!E218","v":0}]
[{"$f":"PARAMETER_HL!E219","v":0}]
[{"$f":"PARAMETER_HL!E220","v":0}]
[{"$f":"PARAMETER_HL!E221","v":0}]
[{"$f":"PARAMETER_HL!E222","v":0}]
[{"$f":"PARAMETER_HL!E223","v":0}]
[{"$f":"PARAMETER_HL!E224","v":0}]
[{"$f":"PARAMETER_HL!E225","v":0}]

{"sheet":"Language","index":9,"n_rows":101,"n_cols":17,"rows_kept":101,"cut":false,"hidden":true,"merged":[]}
["INDEX","ENGLISH","GERMAN","BULAGRIAN","DUTCH ","FRENCH","ROMANIAN","TURKISH","RUSSIAN","Czech","ITALIAN","HUNGARIAN","CROATIAN","POLISH","Danish ","Norweigian ","Swedish"]
[1,"PIPE SIZING FOR SINGLE OR DOUBLE LINES BETWEEN 2 NET POSITIONS","ROHRLEITUNGSBERECHNUNG  - VERBINDUNG VON ZWEI NETZPUNKTEN MIT EINZEL- ODER DOPPELLEITUNG","ОРАЗМЕРЯВАНЕ НА ТРЪБОПРОВОД - СЪЕДИНЯВАНЕ НА 2 ТОЧКИ ЧРЕЗ ЕДНО- ИЛИ ДВУТРЪБНА СИСТЕМА","BUISAFMETING VOOR ENKEL OF DUBBEL LEIDINGSYSTEEM VAN A NAAR B","DIMENSIONNEMENT TUBE FLEXALEN LIGNE SIMPLE OU DOUBLE POUR LIAISON ENTRE BATIMENTS ","DIMENSIONARE CONDUCTE CIRCUITE SIMPLE SAU DUBLE INTRE DOUA PUNCTE DIN RETEA","İKİ NOKTA ARASINDAKİ TEKLİ VEYA İKİLİ HATLAR İÇİN BORU EBADI","РАСЧЕТ ДИАМЕТРА ТРУБ ДЛЯ ОДНОТРУБНОЙ ИЛИ ДВУХТРУБНОЙ СИСТЕМ МЕЖДУ ДВУМЯ ТОЧКАМИ","VÝPOČET POTRUBÍ PRO TRUBNÍ VEDENÍ - SPOJENÍ DVOU BODŮJEDNOTRUBNÍM NEBO DVOUTRUBNÍM VEDENÍM","Dimensionamento Tubo per linee singole o doppie tra due punti distinti","Cső méretezése - két pontot összekötő egy/duplavezetékes csőrendszer","DIMENZIONIRANJE CJEVOVODA - SPOJ 2 TOČKE SUSTAVA ( A-B ) - ZA JEDNOCJEVNE ILI DVOCJEVNE SUSTAVE","Program doboru średnic dla rur pojedyńczych i podwójnych FLEXALEN pomiędzy źródłem ciepła i odbiorcą","RØR DIMENSIONERING FOR ENKELT ELLER DOBBELT RØRFØRING IMELLEM TO PUNKTER","DIMENSJONERING AV ENKLE ELLER DOBLE RØRET MELLOM TO PUNKTER","UTFORMNINGAV ENKLA ELLER DUBBLA KULVERT MELLAN TVÅ PUNKTER"]
[2,"FLEXALEN - PREINSULATED PIPE SYSTEMS","FLEXALEN - ISOLIERTE ROHRSYSTEME","FLEXALEN - СИСТЕМА ОТ ПРЕДВАРИТЕЛНО ИЗОЛИРАНИ ТРЪБИ","FLEXALEN VOORGEISOLEERD LEIDINGSYSTEEM","FLEXALEN - SYSTEME TUBES PRE-ISOLES","FLEXALEN-SISTEM CONDUCTE PREIZOLATE","FLEXALEN - ÖNYALITIMLI BORU SİSTEMLERİ","FLEXALEN - ПРЕДВАРИТЕЛЬНО ИЗОЛИРОВАННЫЕ ТРУБЫ","FLEXALEN - PŘEDIZOLOVANÉ POTRUBNÍ SYSTÉMY","Flexalen 600 - Sistema di tubi preisolati","Flexalen - előszigetelt csőrendszer","FLEXALEN 600 - PREDIZOLIRANI CIJEVNI SUSTAV","Flexalen - system preizolowanych rur","FLEXALEN - PRÆ-ISOLERET RØRSYSTEM","FLEXALEN - PREFABRIKKERT RØRSYSTEM","FLEXALEN - PREFABRIKEREDE RÖRSYSTEMER"]
[3,"MADE FOR DOMESTIC WATER DISTRIBUTION, COOLING AND HEATING SUPPLY LINES","BERECHNUNG GILT FÜR BRAUCHWASSER-, HEIZUNG- UND KÜHLLEITUNGEN","ИЗЧИСЛЕНИЕТО Е ВАЛИДНО ЗА ПИТЕЙНА ВОДА И ЗА ВОДА ПРИГОДНА ЗА ОТОПЛИТЕЛНИ СИСТЕМИ","GESCHIKT VOOR TAPWATER EN WARMTE/KOUDE DISTRIBUTIE","CE PROGRAMME EST DEFINI POUR LE CALCUL DES RESEAUX DE CHAUFFAGE ET DE DISTRIBUTION D'EAU SANITAIRE","FABRICATE PENTRU RETELE DE DISTRIBUTIE A ENERGIEI TERMICE SI APEI MENAJERE ","SICAK-SOĞUK SU TESİSATLARI VE BÖLGESEL  ISITMA  HATLARI İÇİN YAPILMIŞTIR","ЭТОТ РАСЧЕТ СДЕЛАН ДЛЯ СИСТЕМ БЫТОВОГО ВОДОСНАБЖЕНИЯ И ЦЕНТРАЛЬНОГО ОТОПЛЕНИЯ","VYVINUTO PRO ROZVODY VODY A SYSTÉMY DÁLKOVÉHO TOPENÍ ","Prodotto per distribuire acqua sanitaria e reti di teleriscaldamento","Számítások használati és Fűtővís rendszerek esetében érvényesek","IZRAČUN VRIJEDI ZA SANITARNU I NORMALNO KONDICIONIRANU VODU U TOPLOVODNIM SUSTAVIMA GRIJANJA","Przeznaczony do dystrybucji ciepłej wody użytkowej i uzdatnionej wody grzewczej","FREMSTILLET TIL DISTRIBUTION AF VARMT BRUGSVAND, KØLING OG FJERNVARME","KONSTRUERT FOR UTDELING AV  VARMTVANN, KØLING OG FJERNVARME ","AVSETT FÖR DISTRIBUTION AV VATTEN, FJÄRKYLA OCH FJÄRVARME"]
[4,"QUALITY FACTOR","QUALITÄTSFAKTOR","КАЧЕСТВЕН  ФАКТОР","KWALITEITS FACTOR","FACT QUALITE","FACTOR CALITATE","KALİTE FAKTÖRÜ","КАЧЕСТВЕННЫЙ ФАКТОР","FAKTOR JAKOSTI","Fattore Qualità","Minőségi tényező","KVALITATIVNI FAKTOR","Współczynnik jakości","KVALITETS FAKTOR","KVALITET FACTOR","KVALITETS FAKTOR"]
[5,"TEMPERATUR FACTOR","TEMPERATURFAKTOR","ТЕМПЕРАТУРЕН  ФАКТОР","TEMPERATUUR FACTOR","FACT TEMPERATURE","FACTOR TEMPERATURA","SICAKLIK FAKTÖRÜ","ТЕМПЕРАТУРНЫЙ ФАКТОР","FAKTOR TEPLOTY","Fattore Temp.","Hőmérsékleti tényező","TEMPERATURNI FAKTOR","Współczynnik temperatury","TEMPERATUR FAKTOR","TEMPERATUR FAKTOR","TEMPERATUR FAKTOR"]
[6,"SIZE TUNING","ANPASSUNG DIMENSION","ДИМЕНЗИЯ ЗА НАПАСВАНЕ","OPTIMALISERINGS FACTOR","ADAPTATION DIAMETRE","OPTIMIZARE DIMENSIONARE","BOYUT AYARLAMA","ПОДБОР ДИАМЕТРА","PŘIZPŮSOBENÍ DIMENZE","Sistema di dimensionamento","Méretezés","DIMENZIONIRANJE","Współczynnik doboru średnic","REGULERING AF STØRRELSE ","REGULERING AV STØRRELSE","REGLERING AV STORLEK"]
[7,"FLOW TEMPERATURE (Tf)","TEMPERATUR VORLAUF  (Tf)","ТЕМПЕРАТУРА ПОДАВАНЕ","AANVOER TEMPERATUUR","TEMPERATURE DEPART","TEMPERATURA TUR","GİDİŞ SICAKLIĞI [°C] Tg","ТЕМПЕРАТУРА В \"ПОДАЧЕ\" (Tп)","TEPLOTA NA PŘÍVOD. VĚTVI  (Tp )","Temp. di andata(Tf)","Előremenő hőmérséklet","TEMP. POL. (Tpolaza)","Temperatura zasilania Tz","FREMLØBS TEMPERATUR ( Tf)","TURLEDNINGSTEMPERATUR (Tf)","TILFÖRSELLEDNINGS TEMPERATUR (Tf)"]
[8,"RETURN TEMPERATURE (Tr)","TEMPERATUR RÜCKLAUF (Tr)","ВЪЗВРАТЕНА ТЕМПЕРАТУРА","RETOUR TEMPERATUUR","TEMPERATURE RETOUR","TEMPERATURA RETUR","DÖNÜŞ SICAKLIĞI [°C] Td","ТЕМПЕРАТУРА В \"ОБРАТКЕ\" (То)","TEPLOTA NA VRATNÉ VĚTVI (Tv)","Temp. di ritorno(Tr)","Visszatérő hőmérséklet","TEMP. POV. (T povrata)","Temperatura powrotu Tp","RETUR TEMPERATUR (Tr)","RETUR TEMPERATUR (Tr)","RETURLEDNINGS TEMPERATUR (Tr)"]
[9,"TEMP. DIFFERENCE (Tf - Tr)","TEMP. SPREIZUNG (Tf - Tr)","ТЕРМОРАЗЛИКА (захр./връщ.)","TEMPERATUUR VERSCHIL","DELTA T (Td-Tr)","DIFERENTA TEMPERATURA","SICAKLIK FARKI  (Tg - Td)","РАЗНИЦА ТЕМПЕРАТУР (Tп - Tо)","TEPLOTNÍ SPÁD (Tp-Tv)","Differenza di Temp.(Tf-Tr)","Hőmérsékletkülönbség","Δ T (Tpolaza - Tpovrata)","Różnica temperatur (Tz-Tp)","TEMP. FORSKEL (Tf - Tr)","TEMP. FORSKJELL (Tf - Tr)","TEMP. SKILLNAD (Tf - Tr)"]
[10,"TRENCH LENGTH","TRASSENLÄNGE","ДЪЛЖИНА НА ТРАСЕТО","TRACEE LENGTE","L.TRANCHEE(m)","LUNGIME SANT","TRANŞE(KANAL) UZUNLUĞU","ДЛИНА ТРАНШЕИ","DÉLKA TRASY","Lunghezza dello scavo","Nyomvonal hossza","DUŽINA TRASE","Długość wykopu","TRACE LÆNGDE","TRACE LENGDE","SPÅRLÄNGD "]
[11,"HEAT LOAD kW SOURCE","LEISTUNG kW QUELLE","ПОДАВАНА МОЩНОСТ","OVER TE BRENGEN VERMOGEN kW","PUISSANCE DEPART","PUTERE SURSA kW","ISI KAYNAĞI YÜKÜ ( KW )","ТЕПЛОВАЯ НАГРУЗКА, кВт","VÝKON ZDROJE (kW)","Calore necessario in KW","Forrásoldali teljesítmény kW","SNAGA IZVORA kW ","Obciążenie cieplne kW","VARMEBEHOV Kw BELASTNING","TRENGER ANTAL Kw VARME BELASTNING","VÄRMA BEHOV Kw BELASTNING"]
[12,"VOLUMETRIC FLOW RATE","MEDIUMMENGE","ДЕБИТ","VOLUMESTROOM","DEBIT","DEBIT VOLUMETRIC","HACİMSEL DEBİ","ОБЪЕМНЫЙ РАСХОД","OBJEMOVÝ PRŮTOK","Portata","Térfogatáram","VOLUMETRIČKA KOLIČINA MEDIJA","Natężenie przepływu","VOLUME GENNEMSTRØMNING","VOLUMSTRØM","FLÖDE"]
[13,"PIPE LENGTH","ROHRLÄNGE","ДЪЛЖИНА НА ТРЪБИТЕ","BUIS LENGTE","L.TUBES (m)","LUNGIME CONDUCTA","BORU UZUNLUĞU","ДЛИНА ТРУБ","CELKOVÁ DÉLKA POTRUBÍ","Lunghezza del tubo","Vezeték hossza","DUŽINA CIJEVI","Długość rury","RØR LÆNGDE","RØRLENGDE","RÖRLÄNGD"]
[14,"OD (DIMENSION)","DA (DIMENSION)","DA (външен диаметър на тръбата)","BUITEN DIAMETER","DIAMETRE EXT.","DE(DIMENSIUNE)","BORU DIŞ ÇAPI ÖLÇÜSÜ","Dнар. НАРУЖНЫЙ ДИАМЕТР","DA (DIMENZE)","DE(dimensione)","Dk (külső átmérő)","DA ( DIMENZIJA )","Średnica rury Dz","UDV.(DIMENSION)","UDV.(DIMENSION)","UDV.(DIMENSION)"]
[15,"VELOCITY","FLIESSGESCHWINDIGKEIT","СКОРОСТ НА ПОТОКА","SNELHEID","VITESSE","VITEZA","HIZ","СКОРОСТЬ ПОТОКА","RYCHLOST PROUDĚNÍ","Velocità del fluido","Áramlási sebesség","BRZINA STRUJANJA","Prędkość przepływu","HASTIGHED","FART","HASTIGHET"]
[16,"PRESSURE DROP FLOW","DRUCKVERLUST VORLAUF","ЗАГУБА НАЛЯГАНЕ / ПОДАВАНЕ","DRUKVERLIES AANVOER","PERTES CH. DEPART","PIERDERE PRESIUNE TUR","GİDİŞ HATTI BASINÇ KAYBI","ПОТЕРЯ ДАВЛЕНИЯ В \"ПОДАЧЕ\"","TLAK. ZTRÁTA NA PŘÍV. VĚTVI","Pressione di andata","Nyomásveszteség előre","PAD TLAKA U POLAZU","Spadek ciśnienia na zasilaniu","TRYKTAB FREMLØB","TRYKKTAP TUR","TRYCKFALL TILFÖRSELLEDNING"]
[17,"PRESSURE DROP RETURN","DRUCKVERLUST RÜCKLAUF","ЗАГУБА НАЛЯГАНЕ / ВРЪЩАНЕ","DRUKVERLIES RETOUR","PERTES CH. RETOUR","PIERDERE PRESIUNE RETUR","DÖNÜŞ HATI BASINÇ KAYBI","ПОТЕРЯ ДАВЛЕНИЯ В \"ОБРАТКЕ\"","TLAK. ZTRÁTA NA VRAT.VĚTVI","Pressione di ritorno","Nyomásveszteség vissza","PAD TLAKA U POVRATU","Spadek ciśnienia na powrocie","TRYKTAB RETUR","TRYKKTAP RETUR","TRYCKFALL RETURLEDNING"]
[18,"PRESSURE DROP TOTAL","DRUCKVERLUST GESAMT","ЗАГУБА НАЛЯГАНЕ ОБЩО","DRUKVERLIES TOTAAL","PERTES CH. TOTALES","PIERDERE TOTALA PRESIUNE","TOPLAM BASINÇ KAYBI","ОБЩИЕ ПОТЕРИ ДАВЛЕНИЯ","TLAKOVÁ ZTRÁTA CELKEM","Pressione totale","Nyomásveszteség összesen","UKUPAN PAD TLAKA","Całkowity spadek ciśnienia","TRYKTAB TOTAL","TRYKKTAP TOTAL","TRYCKFALL TOTAL"]
[19,"SUPPLY LINE (SINGLE LINE)","SANITÄR (EINROHRSYSTEM)","САНИТАРИЯ / БГВ","AANVOERLEIDING","LIGNE SIMPLE","CIRCUIT ALIMENTARE (ACM)","BESLEME HATTI ( TEK HAT )","ВОДОСНАБЖЕНИЕ (ОДНОТРУБНАЯ СИСТЕМА)","TEPLÁ VODA(Jednotrubní vedení)","Linea di adduzzione(singola)","Ellátó hálózat (egyvezetékes csőrendszer)","SANITARNA VODA","Przewód zasilający ( pojedyncza rura)","FREMLØB (ENKELT RØR) ","TURLEDNING (ENKELT RØR)","TILFÖRSELLEDNING (ENDA RÖR)"]
[20,"HEATING / COOLING (F / R)","HEIZUNG / KÜHLUNG (VL / RL)","ОТОПЛЕНИЕ","VERWARMING / KOELING","ALLER+RETOUR","INCALZIRE/RACIRE(TUR-RETUR)","ISITMA / SOĞUTMA","ОТОПЛЕНИЕ (ДВУХТРУБНАЯ СИСТЕМА)","TOPENÍ/CHLAZENÍ(P/V)","Riscaldamento/Condizionamento(...)","Fűtés / Hűtés","GRIJANJE/HLAĐENJE","Rura podwójna ( zasilanie - powrót )","VARME / KØLING (F/R)","VARME / KJØLING (T/R)","VARME / KYLA  (T/ R)"]
[21,"USABLE TEMP. DIFF.","NUTZSPREIZUNG","ТЕРМОРАЗЛИКА","NUTTIG TEMPERATUURVERSCHIL","DELTA T UTILE","DIFERENTA TEMPERATURA UTILA","KULLANILIR SICAKLIK FARKI","РАЗНИЦА ТЕМПЕРАТУР В ТОЧКЕ2","POUŽITELNÝ TEPELNÝ SPÁD","Differenza di Temp. utile","Felhasználható hőmérséklet külömbség","ISKORISTIVA TEMP. RAZLIKA","Obliczeniowa różnica temperatur","ANVENDELIG TEMP. FORSKEL","AKTUEL TEMPERATUR FORSKEL","GÄLLANDE TEMP. SKILLNAD"]
[22,"USABLE LOAD","NUTZLAST","ПОЛЕЗЕН ТОВАР","NUTTIG VERMOGEN","PUISS UTILE","PUTERE UTILA","KULLANILIR ISI YÜKÜ","ДОСТАВЛЕННОЕ ТЕПЛО В ТОЧКЕ2","POUŽITELNÉ ZATÍŽENÍ","Carico utile","Felshasználható terhelés","ISKORISTIVA SNAGA","Obliczeniowe obciążenie cieplne","ANVENDELIG BELASTNING","AKTUEL BELASTNING","AKTUELLA BELASTNINGEN"]
[23,"NET VOLUME","NETZVOLUMEN","ОБЕМ НА СИСТЕМАТА","NETTO VOLUME","VOL. RESEAU","VOLUM NET","NET HACİM","ОБЪЕМ СИСТЕМЫ","OBSAH SÍTĚ","Volume netto","Hálozat volumene","VOLUMEN CJEVOVODA","Pojemność sieci","NET VOLUME","NET VOLUME","NET VOLUME"]
[24,"SOURCE","QUELLE","ИЗТОЧНИК","BRON","DEPART","SURSA","KAYNAK","ИСТОЧНИК (1)","ZDROJ","Sorgente","Forrás teljesítmeny kW","IZVOR","Źródło ciepła","KILDE","KILDE","KILDE"]
[25,"TEMP. DIFF.","SPREIZUNG","ТЕРМОРАЗЛИКА","TEMPERATUUR VERSCHIL","DELTA T ","DIFERENTA TEMPERATURA","SICAKLIK FARKI","РАЗНИЦА ТЕМПЕРАТУР ","TEPLOTNÍ SPÁD ","Differenza di Temp.","Hőmérsékletkülönbség","TEMPERATURNA RAZLIKA","Różnica temperatury","TEMP. FORSKEL ","TEMP. FORSKJELL","TEMP. SKILLNAD "]
[26,"NO","OHNE","няма","NEE","0 K","NU","HAYIR","НЕТ","-----","No","nem, nincs","BEZ","---------","NEJ","NEI","NEJ"]
[27,"PUMP","PUMPE","ПОМПА","POMP","POMPE","POMPA","POMPA","НАСОС","ČERPADLO","Pompa","Szivattyú","PUMPA","Pompa","PUMPE","PUMP","PUMP"]
[28,"RESERVE PRESSURE FOR PUMP","VORDRUCK FÜR PUMPENAUSLEGUNG","ПРЕДПИСАНИЕ ЗА ИЗБОР НА ПОМПА","DRUKRESERVE VOOR POMP","PERTES CH. ADDITIONNELLES ","REZERVA PRESIUNE POMPA","POMPA YEDEK BASINCI","ПОТЕРИ ДАВЛЕНИЯ ВО \"ВНУТРЯНКЕ\"","TLAK PŘÍDAVNÉHO ČERPADLA","Press. di riserva per la pompa","A szivattú nyomástartaléka","TLAČNA REZERVA PUMPE","Rezerwowe ciśnienie pompy","TILDELT TRYK TIL PUMPE ","RESERVERT TRYKK TIL PUMPE","FORBEHÅLLEN TRYCK FÖR PUMP"]
[29,"Temperature °C","Temperatur °C","Температура °C","Temperatuur °C","Température °C","Temperatura °C","Sıcaklık °C","Температура °C","Teplota° C","Temp. in °C","Hőmérséklet °C","Temperatura °C","Temperatura °C","Temperatur °C","Temperatur °C","Temperatur °C"]
[30,"Pressure loss bar","Druckverlust bar","Загуба на налягане bar","Drukverlies (bar)","Pertes ch. Lin.","Pierdere presiune bar","Basınç kaybı [bar] ","Потери давления bar","Tlaková ztráta bar","Perdita di pressione in bar","Nyomásveszteség bar","Pad tlaka bar","Strata ciśnienia, bar","Tryktab i bar","Trykktap i bar","Tryckfall i bar"]
[31,"Dimension OD","Dimension DA","Размер на тръбата DA","Buitendiameter","Diamètre Ext","Diametru exterior","Boyut ( DIŞ ÇAP)","ДИАМЕТР Dнар.","Dimenze (DA)","Diamentro","Dk (külső átmérő)","DA ( DIMENZIJA )","Średnica Dz","Udv. Dimension ","Udv. Dimension ","Udv. Dimension "]
[32,"END POINT","END - PUNKT","ПОЛЕЗЕН ТОВАР","EINDPUNT","DESTINATION","PUNCT FINAL","SON NOKTA","КОНЕЧНАЯ ТОЧКА (2)","KONEČNÝ BOD","Fine linea","Végpont","Završna točka","Odbiorca","ENDE PUNKT","ENDE PUNKT","ENDPOINT"]
[33,"FLOW","VORLAUF ","ПОДАВАНЕ","AANVOER","DEPART","TUR","GİDİŞ HATTI","\"ПОДАЧА\"","PŘÍVODNÍ VĚTEV","Portata","Előre","POLAZ","Zasilanie","FREMLØB ","TUR","TILFÖRSELLEDNING"]
[34,"RETURN","RÜCKLAUF ","ВРЪЩАНЕ","RETOUR","RETOUR","RETUR","DÖNÜŞ HATTI","\"ОБРАТКА\"","VRATNÁ VĚTEV","Ritorno","Vissza","POVRAT","Powrót","RETUR","RETUR ","RETURLEDNING"]
[35,"Not Appliable","Entfällt","НЯМА","N.V.T.","Inapplicable","Neaplicabil","Uygulanamaz","не применяемо","Nezadáno","Non applicabile","Nem meghatározott","nije primjenjivo","Nie Odpowiedni","ikke anvendelig","ikke anvendelig","inta användbar"]
[36,"Soil temperature","Erdtemperatur","температура земя","Bodem temperatuur","Température Sol ","Temperatura sol","Toprak (zemin) sıcaklığı","Температура почвы","Teplota zeminy","Temp. del terreno","Talajhőmérséklet","Temperatura tla","Temperatura gruntu","temperatur i jorden ","temperaturen i jorden","temperaturen i marken"]
[37,"Coverage","Überdeckung","дълб. на полагане","gronddekking","Recouvrement","Adancime sant","Dolgu yuksekligi","Глубина заложения","Výška krytí","Copertura","Átfedés","Pokrov","Głębokość wykopu","jorddækning","jorddækning","återfyllning"]
[38,"Lambda soil","Lambda Erde","Lambda земя","Lambda bodem","Lambda Sol","Lambda Sol","Toprak (zemin) ısı iletkenlik katsayısı ","λ почвы","Lambda zeminy","Lambda del terreno","Talaj hővezetési tényező Lambda","Lambda tla","Lambda gruntu","lambda jord","lambda jord","lambda i marken"]
[39,"Temperature drop Flow","Temperaturabfall VORLAUF","Темп.загуба ПОДАВАНЕ","Temperatuurverlies Aanvoer","Chute temp. ligne départ","Pierdere temperatura tur","Sicaklik kaybi","Потери темп. в \"подаче\"","Teplotní ztráta - přívod.","Temp. di rugiada","Hömérsékletcsökkenés előre","Pad temperature u polazu","Spadek temperatury na zasilaniu","Temperaturfald fremløb ","Temperaturfall turledning","Temperaturfall flöde"]
[40,"Trench Length","Trassenlänge","Дължина на ТРАСЕТО","Tracee Lengte","Long.Tranch.m","Lungime sant","Tranşe (kanal) uzunluğu","Длина траншеи","Délka trasy","Lunghezza dello scavo","Nyomvonal hossza","Dužina trase","Długość wykopu","Trace længde ","Trace lengde ","Spårlängd  "]
[41,"Dwell time Flow","Verweildauer VORLAUF","Времетраене на ПОТОКА","Verblijfstijd Stroming","Durée Ecoulement","DURATA PARCURS TUR","Akış süresi","Время подачи","Prodleva - přívodní větev","Tempo di riempimento","Tartózkodási idő előre","Vrijeme protoka u polazu","Czas przepływu","Gennemløbstid ","Gennemløbstid ","genomströmnings tid "]
[42,"Pressure rating","Druckreihe","Налягане","Drukklasse","Press. Service","PRESIUNEA REGIM","Basınç değeri","Номинал. давление","Tlaková řada","Pressione d'esercizio","Nyomásgörbe (vezeték jelleggörbe)","Tlačni red","Ciśnienie odniesienia","Trykforhold","trykkforhold ","tryckförhållande "]
[43,"Max. Pressure","Maximaldruck","Max налягане","Maximum druk","Press. Max.","Presiune Max.","Max.Basınç","Max. давление ","Maximální tlak","Pressione massima","Maximális nyomás","Maksimalni tlak","Max. ciśnienie","Max. Tryk","Max. Trykk","Max.Tryck"]
[44,"Pressure drop","Druckverlust","загуба налягане","Drukval","Pertes Chges.","Cadere Presiune","Basınç kaybı bar ","Потери давления","Tlaková ztráta","Perdita di carico","Nyomásveszteség","Pad tlaka","Spadek ciśnienia","Tryktab","Trykktap","Tryckfall"]
[45,"Reserve press.","Druckreserve","резерв налягане","Drukreserve  ","Réserve Press.","Rezerva presiune","rezerv basinc","Резерв давления","Tlaková rezerva","Pressione residua","Nyomástartalék","Tlačna rezerva","Rezerwa ciśnienia","Tryk reserve ","Trykk reserve ","Tryckreserv"]
[46,"at 95°C","bei 95°C","при 95°C","bij 95°C","à 95°C","la  95°C","95°C de","при 95°C","při 95°C","a 95°C","95°C - Mellett","pri 95° C","przy 95 °C","ved 95 °C","ved 95 °C","vid 95 °C"]
[47,"at Service Temperature","bei Anwendungstemperatur","при прилаганата темпер.","bij bedrijfstemperatuur","à Température de Service","la Temperatura de lucru","İşletme sıcaklığında","при рабочей температуре","při provozní teplotě","alla Temp. di esercizio","Felhasználási hőmérséklet mellett","PRI RADNOJ TEMPERATURI","Przy temperaturze roboczej","ved anvendelses temperatur ","ved brukt temperatur","med användning av temperatur"]
[48,"FLEXALEN pipes only","im FLEXALEN Rohr","в тръбите","FLEXALEN leidingen","Rés. FLEXALEN seul","Conducte Flexalen","Sadece FLEXALEN borular","Только в трубах Flexalen","Pouze pro potr.FLEXALEN","delle tubazioni Flexalen","Flexalen csőben","samo za FLEXALEN cijevi ","Tylko dla rur Flexalen","Kun for FLEXALEN rør  ","Kun for FLEXALEN rør  ","Endast FLEXALEN rören"]
[49,"at Service Temperature","bei Anwendungstemperatur","при прилаганата темпер.","BIJ BEDR TEMP","à Température de Service","la Temperatura de lucru","İşletme sıcaklığında","при рабочей температуре","při provozní teplotě","alla Temp. di esercizio","Felhasználási hőmérséklet mellett","pri radnoj temperaturi","Przy temperaturze roboczej","ved anvendelses temperatur ","ved brukt temperatur ","vid den föreskrivna temperaturen"]
[50,"PLEASE CHOOSE APPLICATION:","BITTE ANWENDUNG WÄHLEN:","МОЛЯ ИЗБЕРЕТЕ ПРИЛОЖЕНИЕТО:","SELECTEER TOEPASSING:","CHOIX DE L'APPLICATION","VA RUGAM ALEGETI APLICATIA","LÜTFEN UYGULAMAYI SEÇİN:","ВЫБЕРИТЕ СИСТЕМУ:","PROSÍM VYPLŇTE UŽITÍ:","Prego scegliere l'applicazione","Felhasználási terület kiválasztása","MOLIMO ODABERITE NAMJENU:","Proszę wybrać zastosowanie","VÆLG ANVENDELSE","VÆLG BRUK","VÄLJ APPLIKATION"]
[51,"SUPPLY LINE →","SANITÄR →","САНИТАРИЯ / БГВ →","TOEVOERLEIDING →","LIGNE SIMPLE →","CIRCUIT A.C.M →","BESLEME HATTI ( TEK HAT ) →","ВОДОСНАБЖЕНИЕ  →","TEPLÁ VODA  →","Linea di alimentazione","Ellátó hálózat","SANITARNA VODA →","Rura pojedyncza →","BRUGSVAND →","VANN →","VATTEN →"]
[52,"HEATING / COOLING →","HEIZUNG / KÜHLUNG →","ОТОПЛЕНИЕ  →","VERWARMING / KOELING →","A/R CHAUF/EAU.GL →","INCALZIRE/RACIRE  →","ISITMA / SOĞUTMA →","ОТОПЛЕНИЕ  →","TOPENÍ/CHLAZENÍ →","Riscaldamento/Condizionamento(...)","Fűtés / Hűtés","GRIJANJE  /  HLAĐENJE →","Rura podwójna →","VARME/KØLING →","VARME/KJØLING →","VÄRME / KYLA →"]
[53,"Single pipe system:",null,null,null,"Ligne Simple","SISTEM CONDUCTA SIMPLA","Tek Borulu Sistemler:","Обнотрубная система:","Jednotrubní systém:","Sistema di tubazioni singole","Egyvezetékes csőrendszer","Jednocjevni sustav:","System pojedynczych rur","Enkelt rør system:","Enkelt rør system:","Singel rör System:"]
[54,"TEMPERATURE","TEMPERATUR","Въведи температура в °C:","VUL DE TEMPERATUUR IN VAN HET MEDIUM","TEMPERATURE","TEMPERATURA","SICAKLIK","ТЕМПЕРАТУРА [°C]","TEPLOTA","Temp.","Hőmérséklet","TEMPERATURA","Temperatura","TEMPERATUR","TEMPERATUR","TEMPERATUR"]
[55,"FILL IN TRENCH LENGTH","TRASSENLÄNGE","Въведи дължина на трасето в м:","VUL DE LENGTE VAN HET TRACEE IN","LONGUEUR DE TRANCHÉE","LUNGIME SANT","TRANŞE(KANAL) UZUNLUĞUNU GİR","ВВЕДИТЕ ДЛИНУ ТРАНШЕИ в [м]","ZADEJTE DÉLKU TRASY","Lunghezza dello scavo","Vezeték hossza (Kitölti a nyomvonal hosszat)","U DUŽINI TRASE","Wypełnienie długość wykopu","UDFYLD  TRACE LÆNGDE ","FYLL TRACE LENGDE","VÄLJ SPÅRLÄNGD "]
[56,"QUANTITY OF LIQUID","MEDIUMMENGE","Въведи дебит в л/сек:","HOEVEELHEID VLOEISTOF","DEBIT","DEBIT","AKIŞKANIN  DEBİSİ ","РАСХОД [литров/сек]","MNOŽSTVÍ MEDIA","Portata","(Folyadék mennyiség) Közegmennyiség","KOLIČINA MEDIJA","Natężenie przepływu","MÆNGDE AF VÆSKE ","VÆDSKEMENGDE","MÄNGDEN AV LIQUID"]
[57,"ADDITIONAL PRESSURE FOR PUMP","VORDRUCK für PUMPE","Въведи налягане в крайна точка в bar:","ADDITIONELE DRUK VOOR DE POMP","Press. additionnelle à la pompe","PRESIUNE SUPLIMENTARA POMPA","POMPA İLAVE BASINCI","ПОТЕРИ ДАВЛЕНИЯ ВО \"ВНУТРЯНКЕ\" [bar]","PŘÍDAVNÝ TLAK ČERPADLA","Press. aggiuntiva per la pompa","A Csatlakazó rendszer nyomásesése","PRETLAK PUMPE","Dodatkowe ciśnienie pompy","TILLAGT  PUMPETRYK","TILLDELT TIL PUMPETRYKK","FORBEHÅLLEN  PUMPA TRYCK "]
[58,"Twin line system:",null,null,null,null,"Circuit dublu","Çift Hatlı(gidiş-dönüş) Sistemler:","Двухтрубная система:","Dvoutrubní systém:","Sistema di tubazioni doppie","Többvezetékes csőrendszer","Dvocjevni sustav:","System podwójnych rur","Dobbelt rørsystem:","Dobbelt rørsystem:","Dubbel rörssystem :"]
[59,"FLOW TEMPERATURE","TEMPERATUR VORLAUF","Въведи температура на подаване в °C:","VUL DE AANVOER TEMPERATUUR IN","TEMPERATURE DEPART","TEMPERATURA TUR","GIDIS SICAKLIGI","ТЕМПЕРАТУРА В ПОДАЮЩЕМ ТРУБОПРОВОДЕ","TEPLOTA NA PŘÍVOD. VĚTVI  ","Temp. del fluido","Hőmérséklet előre","TEMPERATURA POLAZA","Temperatura zasilania ","FREMLØBS TEMPERATUR","TURLEDNINGSTEMPERATUR","TILFÖRSELLEDNING TEMPERATUR"]
[60,"RETURN TEMPERATURE","TEMPERATUR RÜCKLAUF ","Въведи възвратна температура в °C:","VUL DE RETOUR TEMPERATUUR IN","TEMPERATURE RETOUR","TEMPERATURA RETUR","DONUS SICAKLIGI","ТЕМПЕРАТУРА В ОБРАТНОМ ТРУБОПРОВОДЕ","TEPLOTA NA VRATNÉ VĚTVI ","Temp. del fluido di ritorno","Hőmérséklet vissza","TEMPERATURA POVRATA","Temperatura powrotu ","RETUR TEMPERATUR ","RETUR LEDNINGSTEMPERATUR ","RETUR LEDNINGSTEMPERATUR "]
[61,"TRENCH LENGTH","TRASSENLÄNGE","Въведи дължина на трасето в м:","VUL DE LENGTE VAN HET TRACEE IN","LONG.TRANCH.","LUNGIME SANT","TRANŞE(KANAL) UZUNLUĞU","ДЛИНА ТРАНШЕИ [м]","DÉLKA TRASY","Lunghezza dello scavo","Nyomvonal hossz","DUŽINA TRASE","Długość wykopu","TRACE LÆNGDE ","TRACE LENGDE","SPÅRLÄNGD "]
[62,"HEAT LOAD","ÜBERTRAGENE LEISTUNG ab HEIZHAUS","Въведи мощност в крайна точка в kW:","VUL HET TE TRANSPORTEREN VERMOGEN IN","PUISSANCE","SARCINA TERMICA","ISI YÜKÜ","ТЕПЛОВАЯ НАГРУЗКА [кВт]","PŘENESENÝ VÝKON","Perdita di calore","Energia mennyiség kazánházból","SNAGA PREUZETA OD KOTLOVNICE","Obciążenie cieplne ","VARME BEHOV ","VARME BEHOV ","VÄRMA BEHOV"]
[63,"ADDITIONAL PRESSURE FOR PUMP","VORDRUCK für PUMPE ","Въведи налягане в крайна точка в bar:","ADDITIONELE DRUK VOOR DE POMP","PRESS. ADDITIONNELLE A LA POMPE","PRESIUNE SUPLIMENTARA POMPA","POMPA İLAVE BASINCI","ПОТЕРИ ДАВЛЕНИЯ ВО \"ВНУТРЯНКЕ\" [bar]","PŘÍDAVNÝ TLAK ČERPADLA","Press. aggiuntiva per la pompa","Szivattyú előnyomása","PRETLAK PUMPE","Dodatkowe ciśnienie pompy","TILLAGT  PUMPETRYK","TILLDELT TIL PUMPETRYKK","FORBEHÅLLEN  PUMPA TRYCK "]
[64]
[65,"°C","°C","°C","°C","°C","°C","°C","°C","°C","°C","°C","°C","°C","°C","°C","°C"]
[66,"m","m","m","m","m","m","m","м","m","m","m","m","m","m","m","m"]
[67,"l/s","l/s","l/s","l/s","l/s","l/s","lt/s","l/s","l/s","l/s","l/s","l/s","l/s","l/s","l/s","l/s"]
[68,"bar","bar","bar","bar","bar","bar","bar","bar","bar","bar","bar","bar","bar","bar","bar","bar"]
[69]
[70,"°C","°C","°C","°C","°C","°C","°C","°C","°C","°C","°C","°C","°C","°C","°C","°C"]
[71,"°C","°C","°C","°C","°C","°C","°C","°C","°C","°C","°C","°C","°C","°C","°C","°C"]
[72,"m ","m ","m ","m ","m ","m ","m","м","m ","m","m","m ","m ","m ","m ","m "]
[73,"kW","kW","kW","kW","kW","Kw","KW","кВт","kW","kW","kW","kW","kW","kW","kW","kW"]
[74,"bar","bar","bar","bar","bar","bar","bar","bar","bar","bar","bar","bar","bar","bar","bar","bar"]
[75,"SELECT A FLEXALEN PRODUCT","FLEXALEN PRODUKT WÄHLEN","SELECT A FLEXALEN PRODUCT","KIES EEN FLEXALEN PRODUKT","Choisir un produit FLEXALEN","SELECT A FLEXALEN PRODUCT","SELECT A FLEXALEN PRODUCT","ВЫБЕРИТЕ ТИП ТРУБЫ FLEXALEN","SELECT A FLEXALEN PRODUCT","SELECT A FLEXALEN PRODUCT","SELECT A FLEXALEN PRODUCT","ODABERITE FLEXALEN PROIZVOD","Wybierz produkt Flexalen","VÆLG ET FLEXALEN PRODUKT ","VELG FLEXALEN VARE","VÄLJ FLEXALEN PRODUKT"]
[76,"HEAT LOSS PER m' TRENCH LENGTH","WÄRMEVERLUST PRO TRASSENMETER","HEAT LOSS PER m' TRENCH LENGTH","WARMTEVERLIES PER METER SLEUF","Pertes de chaleur par mètre de tranchée","HEAT LOSS PER m' TRENCH LENGTH","HEAT LOSS PER m' TRENCH LENGTH","ТЕПЛОВЫЕ ПОТЕРИ С 1 МЕТРА ТРАССЫ","HEAT LOSS PER m' TRENCH LENGTH","HEAT LOSS PER m' TRENCH LENGTH","HEAT LOSS PER m' TRENCH LENGTH","TOPLINSKI GUBITAK PO DUŽNOM METRU TRASE","Strata ciepła na metr długości rury w wykopie","VARMETAB PR. METER TRACE ","VARMETAP PER. METER TRACE","VÄRMEFÖLUST PER. METER SPÅRLÄNGD "]
[77,"Choose product","Produkt wählen","Choose product","Kies produkt",null,"Choose product","Choose product","Выберите тип трубы","Choose product","Choose product","Choose product","ODABERITE PROIZVOD","Wybierz produkt ","vælg produkt","VELG VARE ","VÄLJ  PRODUKT"]
[78,"HEAT LOSS TOTAL","WÄRMEABSTRAHLUNG NETZ","HEAT LOSS TOTAL","TOTAAL WARMTEVERLIES","Pertes de chaleur totales","HEAT LOSS TOTAL","HEAT LOSS TOTAL","ТЕПЛОВЫЕ ПОТЕРИ","HEAT LOSS TOTAL","HEAT LOSS TOTAL","HEAT LOSS TOTAL","TOPLINSKI GUBICI KUMULATIVNO","Całkowita strata ciepła","VARMETAB TOTAL","VARMETAP TOTAL","VÄRMEFÖLUST TOTAL"]
[79,"FLEXALEN Product","FLEXALEN Produkt","FLEXALEN Product","FLEXALEN Produkt","FLEXALEN","FLEXALEN Product","FLEXALEN Product","FLEXALEN продукт","FLEXALEN Product","FLEXALEN Product","FLEXALEN Product","FLEXALEN PROIZVOD","Flexalen produktu","FLEXALEN  Produkt ","FLEXALEN  Produkt ","FLEXALEN PRODUKT"]
[80,"Quantity","Menge","Quantity","Aantal",null,"Quantity","Quantity","количество","Quantity","Quantity","Quantity","KOLIČINA","Ilość","Mængde","Mengde","mängd"]
[81]
[82]
[83]
[84]
[85]
[86]
[87]
[88]
[89]
[90]
[91]
[92]
[93]
[94]
[95]
[96]
[97]
[98]
[99]
[100]

{"sheet":"Release Info","index":10,"n_rows":21,"n_cols":3,"rows_kept":21,"cut":false,"hidden":true,"merged":[]}
[null,"Flexalen QuickCalc "]
[null,"Flexalen 600"]
[]
["Version","Date","Changes"]
["v8.00 (beta)","2010-02-03","1st multilingual language: english, german, bulgarian, dutch, Heatloss - temperature drop updated / new outlook,..."]
["v8.00 (beta)","2010-02-09","checked by several people and corrected"]
["v8.00","2010-03-23","Sprachen OK: en, ger, ru, bul, dutch, turkish, romanian"]
["v8.01","2010-06-04","Sprachen - Übersetzungsfehler behoben; v [m/s] Tabelle angefügt; Druckstufe neu für 16-110 und 125-225; Instruction en - aktualisiert"]
["v8.10","2010-07-26","TF faktor angepasst von 1,03 auf 1,02 (nicht 1,011 wie beim großen, robusterer Wert)"]
[null,null,"Alle Beschreibungen geändert auf Flexalen anstatt Flexalen 600"]
[null,null,"alle Parameter aktualisiert"]
[null,null,"CZ language added"]
["v8.11","2010-10-14","Italian & hungarian language added"]
[null,"2010-10-20","corrections translation hungarian"]
[null,"2010-10-27","correction translation italien"]
["v8.12","2011-03-07","croatian language added"]
["v9.00","2011-06-20","Temperature drop calc completely new, Heat losses new, new spread sheet \"Parameter_HL\""]
["v9.01","2011-07-05","update languages, new polish language, some bug fixes"]
["v9.02","2011-07-20","correct polish language, bug fix 75mm product choosing"]
["v10","2020-05-14","new product codes and products, design makeover "]
["v10.1","2021-02-05","language added: croatian, dansk"]